Workbook

Sheet What I am reading (hidden)
B3: Red flag @ Screener | AL3: RoCE
AL4: Going to Bed Smarter #4: ROCE, the Secret Winning Edge to any portfolio
AL5: At Marketsmojo we use the concept of Return on Capital Employed (ROCE) to uncover great companies that can deliver fantastic shareholder returns. In this, the fourth piece in the series of Going to Bed Smarter, I present pieces which let you into the secret of ROCE.
B6: Green flag @ Screener | AL6: Sanjeev Mohta
AL8: August 28, 11:54: AM IST
B9: Insider trading | C9: Promoter buying shares in 2017-2018
AL10: Yesterday’s ET story says,“Warren Buffett in Talks for a Slice of Paytm”.
AL11: Let’s discuss how Warren Buffett finds a great business.
B12: Valuepickr | AL12: His 2007 newsletter reads: “A truly great business must have an enduring ‘moat’ that protects excellent returns on invested capital (ROIC).”
AL13: At Marketsmojo we use the concept of Return on Capital Employed (ROCE) to uncover great companies that can deliver fantastic shareholder returns.
AL14: In this, the fourth piece in the series of Going to Bed Smarter, I present pieces which let you into the secret of ROCE.
B16: Trendlyne | AL16: The 2007 letter of Berkshire Hathaway is a classic. If there is only one Berkshire Hathaway letter you want to read, this one is it. In that letter, Warren Buffett narrates the success of See’s Candy.
AL17: “We bought See’s for $25 million when its sales were $30 million and pre-tax earnings were less than $5 million. The capital then required to conduct the business was $8 million (Modest seasonal debt was also needed for a few months each year). Consequently, the company was earning 60% pre-tax on invested capital. Two factors helped to minimize the funds required for operations. First, the product was sold for cash, and that eliminated accounts receivable. Second, the production and distribution cycle was short, which minimized inventories.
AL18: Last year See’s sales were $383 million, and pre-tax profits were $82 million. The capital now required to run the business is $40 million. This means we have had to reinvest only $32 million since 1972 to handle the modest physical growth – and somewhat immodest financial growth – of the business. In the meantime pre-tax earnings have totaled $1.35 billion. All of that, except for the $32 million, has been sent to Berkshire (or, in the early years, to Blue Chip). After paying corporate taxes on the profits, we have used the rest to buy other attractive businesses. Just as Adam and Eve kick-started an activity that led to six billion humans, See’s has given birth to multiple new streams of cash for us. (The biblical command to “be fruitful and multiply” is one we take seriously at Berkshire.)
B19: Valuepickr | AL19: There aren’t many See’s in Corporate America. Typically, companies that increase their earnings from $5 million to $82 million require, say, $400 million or so of capital investment to finance their growth. That’s because growing businesses have both working capital needs that increase in proportion to sales growth and significant requirements for fixed asset investments.
AL20: A company that needs large increases in capital to engender its growth may well prove to be a satisfactory investment. There is, to follow through on our example, nothing shabby about earning $82 million pre-tax on $400 million of net tangible assets. But that equation for the owner is vastly different from the See’s situation.It’s far better to have an ever-increasing stream of earnings with virtually no major capital requirements. Ask Microsoft or Google.”
AL22: ROCE = EBIT/Capital Employed
B23: General news | AL23: How do we calculated ROCE? Well, there are a few variants. But the easiest one is shown in this paper by Mirae Asset Management. Marketsmojo uses the same method.
AL24: EBIT is easy to calculate, but what about the Capital Employed? The paper says: “Capital Employed is the capital investment necessary for a business to function. It is commonly represented as total assets less current liabilities (or Fixed Assets plus Working Capital).”
AL25: ROCE is a far more useful measure compared to Return on Equity (ROE) as: “ ROCE is especially useful when comparing the performance of companies in capital-intensive sectors such as utilities and telecoms. This is because unlike return on equity (ROE), which only analyzes profitability related to a company’s equity, ROCE considers debt and other liabilities as well. This provides a better indication of financial performance for companies with significant debt.”
B26: Analyst report | AL26: It follows from the equation that in order to generate high ROCE, a company must either have very high profit margins or need low levels of Capital Employed or a combination of the two.
AL27: We have had many such companies in India as well. Many consumer related business enjoy high ROCE due to their Asset Light nature. Hindustan Unilever with ROCE at close to 800%, Nestle at 400%, Page Industries at 84% are great examples.
B29: Concall | AL29: High ROCE Means High Valuation
AL30: In 1997, when running research for HSBC, I had written a piece on the importance of ROCE. I had found that, everything else remaining the same, high ROCE companies enjoy far higher valuation that companies with low ROCE. At least for the companies where market believes that the high ROCE is sustainable.
AL31: A 2011 report, “Impact of ROCE on valuation”, by PWC concluded: “Companies that deliver better Return on Capital Employed (ROCE) experience higher valuation”
B32: Annual report | AL32: The relationship remains the same today. Is it any wonder why Hindustan Unilever, Nestle or Page Industries enjoy such high valuations?
AL33: At Marketsmojo, the five-year average ROCE is one of the most important metric used in our Quality Parameter.
AL35: An interesting example: The Abrasives Industry
B36: Fraud? | AL36: Let us look at the Abrasives Industry (which was picked randomly) which has a fairly uniform product, the relationship between the five-year average ROCE and Price/Book Value is fairly consistent with the findings above.
AL37: Next time you look at a stock, don’t forget to look at its long term ROCE – it’ll give you an insight about the inherent strength of the company’s business, and its ability to squeeze value from every rupee of capital. That will not only determine its valuation but also the price performance.
B40: Earnings slowdown?
B44: Over valued?

Sheet |||| (hidden)

Sheet Valuation_Chart
A1: Snapshot | C1: Value of stock based on
A3: Company | B3: ='Screener Input'!B1 -> CCL PRODUCTS (INDIA) LTD
A4: Sector | B4: FMCG
A5: Stock Price# | B5: ='Screener Input'!B8 -> 271.95
A6: No of shares outstanding | B6: ='Screener Output.v0'!L40 -> 26.61 | D6: Distance Covered | F6: =(Valuation_Table!B8-Valuation_Table!B25)/Valuation_Table!B25 -> -0.2310936034 | I6: PEG
A7: Market Cap | B7: ='Screener Output.v0'!B38 -> 3617.69 | D7: Distance Left (Fundoo) | F7: =POWER(Valuation_Table!E24/Valuation_Table!B8, 1/10)-1 -> 0.1346425737 | I7: =Valuation_Table!B17 -> 2.22624849
A8: Promoter Shareholding | B8: =SUM('Shareholding input'!C6:C7) -> 0.4517 | D8: Distance Left (Mine) | F8: =Valuation_Table!C53 -> 0.1436479239 | G8: =Valuation_Table!E55 -> 0.1857289923
A9: Stock Beta | B9: 1.1
B10: https://in.reuters.com/
A12: Be cautious | B12: Buy on dips There is a difference between a quality stock correcting, a cyclical stock correcting and a worthless stock crumbling. How to invest in share markets is all about knowing this critical difference. High quality stocks can be added on dips, but volatile and speculative stocks are a strict no. Bet on fav FII stocks FIIs are may be buying just to diversify their portfolio. FIIs may also be buying in one account and selling in another account. Quite often FIIs create arbitrage positions i.e. long on equity and short on futures. Buying such stocks without looking at the nature of the transaction will lead you nowhere.
A15: The stock exchange is one big supermarket of companies. And if you are going to be buying stocks, what you want to happen?
A16: You want to have these stocks go down, way down; you will make better buys then. Later on 20-30 years later when you are in a
A17: period when you are dis-saving, or when you heirs dis-save for you, they you make care about high prices.
A19: Charlie and I spend no time thinking about where the mkt is going. There is always going to be some good & bad thing happening
A21: The stock doesn't know you own it. It just sits there. It doesn't care what you paid or the fact that you own it

Sheet Valuation_Table
A7: Current Data | D7: Year Ending | E7: CY | F7: CY-1 | G7: CY-2 | H7: CY-3 | I7: CY-4 | J7: CY-5 | K7: CAGR
A8: CMP | B8: ='Screener Input'!B8 -> 271.95 | D8: PE Ratio | E8: ='Screener Output.v0'!L76 -> 26.17298121 | F8: ='Screener Output.v0'!K76 -> 34.05229408 | G8: ='Screener Output.v0'!J76 -> 21.33378481 | H8: ='Screener Output.v0'!I76 -> 27.58015011 | I8: ='Screener Output.v0'!H76 -> 11.40320059
A9: EPSi | B9: ='Screener Output.v0'!M74 -> 13.10251262 | D9: EPS | E9: ='Screener Output.v0'!L74 -> 11.13525642 | F9: ='Screener Output.v0'!K74 -> 10.11516981 | G9: ='Screener Output.v0'!J74 -> 9.180027772 | H9: ='Screener Output.v0'!I74 -> 7.064682361 | I9: ='Screener Output.v0'!H74 -> 4.842592442 | J9: ='Screener Output.v0'!G74 -> 7.130833888 | K9: =(E9/J9)^(1/5)-1 -> 0.09323110653
A10: EPSi-1 | B10: =SUM('Screener Input'!D49:G49)/'Screener Input'!K93 -> 10.65114752 | D10: DPS | E10: ='Screener Output.v0'!L75 -> 2.50022702 | F10: ='Screener Output.v0'!K75 -> 2.50022702 | G10: ='Screener Output.v0'!J75 -> 2.50022702 | H10: ='Screener Output.v0'!I75 -> 1.500436901 | I10: ='Screener Output.v0'!H75 -> 1.200499865 | J10: ='Screener Output.v0'!G75 -> 0.9997901192 | K10: =(E10/J10)^(1/5)-1 -> 0.2011966734
A11: BVPS | B11: ='Screener Output.v0'!L73 -> 55.62290984 | D11: PB Ratio | E11: ='Screener Output.v0'!L78 -> 5.239619032 | F11: ='Screener Output.v0'!K78 -> 7.292700565 | G11: ='Screener Output.v0'!J78 -> 5.110399766 | H11: ='Screener Output.v0'!I78 -> 6.148257762 | I11: ='Screener Output.v0'!H78 -> 2.082242076
A12: ROE | B12: =Analysis!M4 -> 0.23555964 | D12: BVPS | E12: ='Screener Output.v0'!L73 -> 55.62290984 | F12: ='Screener Output.v0'!K73 -> 47.23143833 | G12: ='Screener Output.v0'!J73 -> 38.32278216 | H12: ='Screener Output.v0'!I73 -> 31.69109161 | I12: ='Screener Output.v0'!H73 -> 26.5199967 | J12: ='Screener Output.v0'!G73 -> 41.85286818 | K12: =(E12/J12)^(1/5)-1 -> 0.058536154
A13: PE | B13: =B8/B9 -> 20.75556101
A14: Earnings Yeild | B14: =B9/B8 -> 0.04817985885 | D14: Payout Ratio | E14: =E10/E9 -> 0.2245325052 | F14: =F10/F9 -> 0.247175981 | G14: =G10/G9 -> 0.2723550606 | H14: =H10/H9 -> 0.212385614 | I14: =I10/I9 -> 0.2479043775
A15: Dividend Yeild | B15: ='Screener Output.v0'!L75/B8 -> 0.009193701122
A16: PB | B16: =B8/B11 -> 4.889172479 | D16: Projections Historical | E16: 0 | F16: 1 | G16: 2 | H16: 3 | I16: 4 | J16: 10
A17: PEG | B17: =B13/100/K9 -> 2.22624849 | D17: EPS/BV | J17: =IF($A$29=1, IF($A$28=2,M43, $E$12*(1+$K$12)^J16), IF($A$28=2,K43, $E$12*(1+Valuation_Table!$C$60)^J16)) -> 37.25045211
A18: Average Data | D18: DPS
A19: ROE 5 Yr. | B19: =Analysis!M3 -> 0.2123268562
A20: Payout | B20: =AVERAGE(E14:I14) -> 0.2408707077 | D20: EPS/BV after 10 years | E20: =J17 -> 37.25045211
A21: Avg P/E Ratio | B21: =AVERAGE(E8:F8,B13) -> 26.9936121 | D21: Bank Interest 1 Yr | E21: =B8*B24 -> 21.756
A22: Avg P/B Ratio | B22: =AVERAGE(E11:G11,B16) -> 5.63297296 | D22: Dividend after 10 Yrs | E22: =B20*M43 -> 8.972542759
A23: Value of Stock | D23: Projected Price | E23: =IF(A28=2, E20*I44, E20*B22) -> 952.8164734
A24: Discount Rate | B24: =Valuation_Table!C61 -> 0.08 | D24: Final Price | E24: =E23+E22 -> 961.7890161
A25: P E/B Valuation | B25: =IF(A28=2, B21*B9, B22*B11) -> 353.6841431
A26: Historical Earnings Growth | B26: =E24/((1+B24)^5) -> 654.5774435 | D26: Projections Growth | E26: Year 0 | F26: 1 | G26: 2 | H26: 3 | I26: 4 | J26: 5
A27: Sustainable Earnings Growth | B27: =E32/(1+B24)^5 -> 547.942138 | D27: BVPS | E27: =E12 -> 55.62290984 | F27: =E27+E28-E29 -> 65.56941097 | G27: =F27+F28-F29 -> 77.29454764 | H27: =G27+G28-G29 -> 91.11637588 | I27: =H27+H28-H29 -> 107.4098265 | J27: =I27+I28-I29 -> 126.6168756
A28: 2 | D28: EPS | E28: =IF($A$30=1, E27*$B$12, E27*$B$19) -> 13.10251262 | F28: 15.44550684 | G28: 18.20747581 | H28: 21.4633407 | I28: 25.30142006 | J28: 29.82582563
A29: 1 | D29: DPS | E29: =E28*B20 -> 3.156011486 | F29: =F28*B20 -> 3.720370163 | G29: =G28*B20 -> 4.385647584 | H29: =H28*B20 -> 5.169890062 | I29: =I28*B20 -> 6.094370955 | J29: =J28*B20 -> 7.184167727
A30: 1 | D30: Earnings after 5 years | E30: =J28 -> 29.82582563
D31: Sum Of dividend paid | E31: =SUM(E29:J29) -> 29.71045798
D32: Projected Price | E32: =B21*E30 -> 805.1067678
D33: Total Gain | E33: =E32+E31 -> 834.8172258
A37: Fundo Prof Concept
A38: Year Ending | B38: TTM | C38: CY | D38: CY-1 | E38: CY-2 | F38: CY-3 | G38: CY-4 | H38: CY-5 | I38: 5 YR CAGR | J38: 10 YR CAGR | K38: Conservative 10 Yr | M38: Future in 10 Yrs
A39: Volume/share
A40: Avg. Realization
A41: Sales/share | B41: ='Screener Output.v0'!M25/'Screener Input'!K93 -> 88.98883783 | C41: ='Screener Output.v0'!L25/'Screener Input'!K93 -> 85.80980594 | D41: ='Screener Output.v0'!K25/'Screener Input'!K93 -> 73.49735304 | E41: ='Screener Output.v0'!J25/'Screener Input'!K93 -> 70.16196299 | F41: ='Screener Output.v0'!I25/'Screener Input'!K93 -> 66.42139485 | G41: ='Screener Output.v0'!H25/'Screener Input'!K93 -> 54.08112823 | H41: ='Screener Output.v0'!G25/'Screener Input'!K93 -> 49.05887426 | I41: =Revenue!D5 -> 0.1264802746 | J41: =Revenue!C5 -> 0.1080783649 | M41: =B41* (1+ ( IF(MIN(I41:J41) >0.25, 0.25,MIN(I41:J41) ) ) ) ^10 -> 248.3363474
A42: Net Profit margin | B42: ='Screener Output.v0'!M127 -> 0.1472377091 | C42: ='Screener Output.v0'!L127 -> 0.1297579522 | D42: ='Screener Output.v0'!K127 -> 0.1376263143 | E42: ='Screener Output.v0'!J127 -> 0.1308512348 | F42: ='Screener Output.v0'!I127 -> 0.1063615478 | G42: ='Screener Output.v0'!H127 -> 0.08950141084 | H42: ='Screener Output.v0'!G127 -> 0.07269161227 | I42: =IFERROR(IF( (POWER('Screener Output.v0'!M127/'Screener Output.v0'!G127,1/5)-1)>0, (POWER('Screener Output.v0'!M127/'Screener Output.v0'!G127,1/5)-1), 0.01), 0.01) -> 0.1516140374 | J42: =IFERROR(IF((POWER('Screener Output.v0'!M127/'Screener Output.v0'!C127,1/10)-1)>0, (POWER('Screener Output.v0'!M127/'Screener Output.v0'!C127,1/10)-1),0.01), 0.01) -> 0.1581571139 | M42: =IF(B42*(1+MIN(I42:J42))^10>0.15, 0.15, B42*(1+MIN(I42:J42))^10) -> 0.15
A43: Net Profit/share (EPS) | K43: =(B41*(1+$B53)^10)*C$52 -> 40.69441533 | M43: =M41*M42 -> 37.25045211
A44: Exit PE | I44: =AVERAGE(E8:G8,B13) -> 25.57865528 | K44: =I44 -> 25.57865528
A45: Price/share | M45: =M43*I44 -> 952.8164734
A46: Price/revenue | B46: =B8/B41 -> 3.056001254 | M46: =M45/M41 -> 3.836798292
A47: Wealth compounding | M47: =POWER(M45/B8,1/10)-1 -> 0.133579594
A49: My Concept
A50: 10 Yr estimate | C50: NP Margin
C51: TTM | D51: TTM+1% | E51: TTM+1.5%
A52: Revenue Growth | C52: =B42 -> 0.1472377091 | D52: =C52+1% -> 0.1572377091 | E52: =B42+1.5% -> 0.1622377091
A53: Conservative | B53: =Valuation_Table!C60 -> 0.12 | C53: =POWER((($B$41*(1+$B53)^10)*C$52*$K$44)/$B$8, 1/10)-1 -> 0.1436479239 | D53: =POWER((($B$41*(1+$B53)^10)*D$52*$K$44)/$B$8, 1/10)-1 -> 0.1511876227 | E53: 0.1547969317
A54: Conservative +2% | B54: =B53+2% -> 0.14 | C54: =POWER((($B$41*(1+$B54)^10)*C$52*$K$44)/$B$8, 1/10)-1 -> 0.1640702082 | D54: 0.1717445445 | E54: 0.1754183054
A55: Conservative +3% | B55: =B53+3% -> 0.15 | C55: 0.1742813504 | D55: 0.1820230054 | E55: 0.1857289923
A59: Assumptions | B59: Max | C59: Current
A60: Conservative furture growth in EPS/BVPS | C60: 0.12
A61: Discount Rate | C61: 0.08

Sheet |

Sheet Scorecard
A2: RESEARCH FRAMEWORK | E2: S.No | G2: Criteria | H2: Goal | I2: Actual | J2: Description | K2: Weight | L2: Score | M2: Delta
A3: PARAMETER | B3: Max WEIGHT | C3: Actual Weight | G3: FINANCIAL ANALYSIS | K3: =SUM(K4:K14) -> 50 | L3: =SUM(L4:L14) -> 44 | M3: =K3-L3 -> 6
A4: Financial Anlaysis | B4: =Scorecard!K3 -> 50 | C4: =Scorecard!L3 -> 44 | E4: 1 | F4: Revenue | G4: Revenue growth 5 Yr. | H4: >20% | I4: =Revenue!C5 -> 0.1080783649 | J4: Growth should be consistent year on year. Ignore companies where a sudden spurt of sales in one year is confounding the 10 years performance. Very high growth rates of >50% are unsustainable. | K4: 4 | L4: =Revenue!L5 -> 3 | M4: =K4-L4 -> 1
E5: 2 | F5: Profit | G5: EPS growth 10 Yr. | H5: >20% | I5: =Profit!F5 -> 0.1992151668 | J5: Rising earnings serve as a good catalyst for stock prices. So seek companies with strong, consistent, and expanding earnings (profits). Seek companies with 5/10 year earnings per share growth greater than 25% (alongwith safe balance sheets). To help indicate that earnings growth is still strong, look for companies where the last 3-years earnings growth rate is higher than the last 10-years growth rate. More important than the rate of growth is the consistency in such growth. So exclude companies with volatile earnings growth in the past, even if the "average" growth has been high. | K5: 5 | L5: =Profit!L5 -> 3 | M5: 2
E6: 3 | G6: EPS growth 5 Yr. | H6: >20% | I6: =Profit!G5 -> 0.1293871793 | J6: Seek companies where earnings have risen as retained earnings (earnings after paying dividends) have been employed profitably. A great way to screen for such companies is by looking at those that have had consistent earnings and strong return on equity in the past. What counts in the long run is the increase in "per share value", not overall growth or size of a business. | K6: 9 | L6: =Profit!M5 -> 7 | M6: 2
E7: 4 | G7: Avg. NP margin 5 Yr. | H7: >10% | I7: =Profit!C5 -> 0.1266544961 | J7: Look for companies with sustained operating & net profit margins over the years - It’s a good indicator of priciing power | K7: 4 | L7: =Profit!P5 -> 4 | M7: 0
F8: RoE/RoA | G8: ROE/ROA 5 Yr. | H8: >20% / >2% | I8: =Dupont!D4 -> 0.2010307629 | J8: ROE = Efficiency in allocating capital, which is a CEO's #1 job. Higher = Better. Look for consistency. Consider it a positive sign when a company is able to earn above-average (better than competitors) returns on equity without employing much debt. Average return on equity for Indian companies over the last 10 years is approximately 16%. Thus, seek companies that earn atleast this much (16%) or more than this. Again, consistency is the key here. | K8: =10 -> 10 | L8: =Dupont!K4 -> 10 | M8: 0
E9: 5 | F9: Efficiency | G9: Debt/Net Profit | H9: <=5 | I9: =Efficiency!C5 -> 1.783993115 | J9: Seeks out companies with conservative financing, which equates to a simple, safe balance sheet. Such companies tend to have strong cash flows, with little need for long-term debt. Look for low debt to equity or low debt-burden ratios. Also seek companies that have history of consistently generating positive free cash flows. | K9: 3 | L9: =Efficiency!K5 -> 3 | M9: 0
E10: 6 | G10: CFO/PAT 5 Yr. | H10: >1 | I10: =Efficiency!E5 -> 1.131805107 | J10: Cumulative PAT and CFO are similar for last 10 years | K10: 4 | L10: =Efficiency!M5 -> 4 | M10: 0
E11: 7 | G11: Current Cash flow | H11: CFO > 0 | I11: =Efficiency!F5 -> 145.15 | J11: Positive CFO is necessary. It’s great if CFO meets the outflow for CFI and CFF | K11: 1 | L11: =Efficiency!N5 -> 1 | M11: 0
E12: 8 | G12: C Liabilty/ C Asset | H12: >1.25 | I12: =Efficiency!D5 -> 0.1547138047 | J12: Current Ratio measures the liquidity of a company, or its ability to pay short-term obligations. The ratio is mainly used to give an idea of the company's ability to pay back its short-term liabilities (debt and payables) with its short-term assets (cash, inventory, receivables). The higher the current ratio, the more capable the company is of paying its obligations. A ratio under 1 suggests that the company would be unable to pay off its obligations if they came due at that point. While this shows the company is not in good financial health, it does not necessarily mean that it will go bankrupt - as there are many ways to access financing - but it is definitely not a good sign. The current ratio can give a sense of the efficiency of a company's operating cycle or its ability to turn its product into cash. Companies that have trouble getting paid on their receivables or have long inventory turnover can run into liquidity problems because they are unable to alleviate their obligations. | K12: 1 | L12: =Efficiency!L5 -> 0 | M12: 1
E13: 9 | F13: Promoter | G13: Promoter Pledged Holding | H13: 0 | I13: =Others!E4 -> 0 | K13: 6 | L13: =Others!L4 -> 6 | M13: 0
E14: 10 | G14: Promoter Holding 5 Yr. | H14: >=-3% | I14: =Others!F4 -> 0.0063 | J14: Buffett prefers that firms reinvest their earnings within the company, provided that profitable opportunities exist. When companies have excess cash flow, Buffett favours shareholder-enhancing maneuvers such as share buybacks. While we do not screen for this factor, a follow-up examination of a company would reveal if it has a share buyback plan in place. | K14: 3 | L14: =Others!M4 -> 3 | M14: 0
G16: Other questions
G17: Big addressable market and long runway to grow?
G18: What MOAT does the company has?
G19: Is the company in a stable industry?
G20: Is the company addressing any human problem?

Sheet Revenue
B3: Revenue | C3: 10 YR CAGR | D3: 5 YR CAGR | E3: YOY | F3: QoQ | G3: SSGR | K3: Revenue | L3: 10 YR CAGR
B4: Expected Gth | C4: 0.2 | K4: Expected Score | L4: 4
B5: Actual Gth | C5: =POWER('Screener Output.v0'!M25/'Screener Output.v0'!C25,1/9)-1 -> 0.1080783649 | D5: =POWER('Screener Output.v0'!M25/'Screener Output.v0'!G25,1/5)-1 -> 0.1264802746 | E5: =POWER('Screener Output.v0'!M25/'Screener Output.v0'!N25,1)-1 -> 0.04360244724 | F5: ='Screener Output.v0'!L191 -> -0.01523783838 | G5: ='Screener Output.v0'!L142 -> 0.1801564429 | K5: Actual Score | L5: =IF(C5>0.2,4,IF(AND(C5>0.1,C5<0.2),3,IF(AND(C5>0.05,C5<0.1),2,IF(AND(C5>0,C5<0.05),1,0)))) -> 3
B7: SSGR and FCF determine the margin of safety. WC if managed well growth funded by profit allows the company to have SSGR >= Sales gth rate. If sales is debt funded then SSGR < Sales gth rate. Sales funded by debt is a recipe for disaster
B11: Total Income - Annl | K11: Income Dist - Annl
B29: Total Income - Qtrly | K29: Income Dist - Qtrly
B48: Sales/NFAT | K48: Sales in Cash/Credit
B62: Indicator of asset light business model
K64: When debtors are increasing at a rate faster than sales, there is a reason to worry. Either the company is trying to increase sales by giving more credit or the company is unable to collect dues in a timely manner.

Sheet Profit
B3: 5 YR NP margin | F3: 10 YR CAGR | G3: 5 YR CAGR | H3: YOY | K3: EPS | L3: 10 YR CAGR | M3: 5 YR CAGR | O3: 5 YR NP margin | S3: QoQ NP
B4: Expected | C4: 0.1 | E4: EPS Expected Gth | F4: 0.2 | G4: 0.2 | K4: EPS Expected Score | L4: 5 | M4: 9 | O4: Expected Score | P4: 4
B5: Actual | C5: =SUM('Screener Output.v0'!H35:M35)/SUM('Screener Output.v0'!H26:M26) -> 0.1266544961 | E5: EPS Actual Gth | F5: =('Screener Output.v0'!M74/'Screener Output.v0'!C74)^(1/9)-1 -> 0.1992151668 | G5: =('Screener Output.v0'!M74/'Screener Output.v0'!G74)^(1/5)-1 -> 0.1293871793 | H5: =('Screener Output.v0'!M74/'Screener Output.v0'!N74)^(1/1)-1 -> 0.2301503282 | K5: EPS Actual Score | L5: =IF(F5>0.2,5,IF(AND(F5>0.1,F5<0.2),3,IF(AND(F5>0.05,F5<0.1),1,IF(AND(F5>0,F5<0.05),1,0)))) -> 3 | M5: =IF(G5>0.2,9,IF(AND(G5>0.1,G5<0.2),7,IF(AND(G5>0.05,G5<0.1),3,IF(AND(G5>0,G5<0.05),1,0)))) -> 7 | O5: Actual Score | P5: =IF(C5>0.1,4,IF(AND(C5>0.08,C5<0.1),3,IF(AND(C5>0.05,C5<0.08),2,IF(AND(C5>0.03,C5<0.05),1,0)))) -> 4 | S5: ='Screener Output.v0'!L193 -> 0.4113072091
E6: PAT Actual Gth | F6: =POWER('Screener Output.v0'!M35/'Screener Output.v0'!C35,1/9)-1 -> 0.3044373636 | G6: =POWER('Screener Output.v0'!M35/'Screener Output.v0'!G35,1/5)-1 -> 0.2972704971 | H6: =('Screener Output.v0'!M35/'Screener Output.v0'!N35)^(1/1)-1 -> 0.2301503282
K7: =VLOOKUP(M7, 'Screener Output.v0'!F203:G205,2, FALSE) -> Fast Grower | M7: =MAX('Screener Output.v0'!F203:F205) -> 3.00001
B8: Equity dilution is a sign of trouble. Company is either trying to be too aggressive or does not generate sufficent funds internally for expansion
B11: EPS - Annl | K11: Profit Margin
K28: Fluctuations in Operating Profit margin indicative of lack of pricing power - company not able to pass in higher raw material price to the customer
B33: Net Profit - Qtr | K33: Operating Profit Components
K50: Company might be making profit but not paying reasonable taxes. There could be genuine reasons (tax exemptions etc.). Company could be showing profits while there is no cost to show.
B51: Net Profit - YoY Growth
B67: Other Inc as % of Net Profit

Sheet Efficiency
C3: Debt/NP | D3: C Liabilty/ C Asset | E3: 5 Yr. CFO/PAT | F3: CFO | G3: 5 YR cFCF | K3: Debt/NP | L3: C Liabilty/ C Asset | M3: 5 Yr. CFO/PAT | N3: CFO
B4: Expected Value | C4: <=5 | D4: >=1.25 | E4: >=1 | F4: >0 | J4: Expected Score | K4: 3 | L4: 1 | M4: 4 | N4: 1
B5: Actual Value | C5: =SUM('Screener Output.v0'!L45:L45)/SUM('Screener Output.v0'!M35:M35) -> 1.783993115 | D5: =SUM('Screener Output.v0'!L10:L10)/SUM('Screener Output.v0'!L9:L9) -> 0.1547138047 | E5: =SUM('Screener Output.v0'!H62:L62)/SUM('Screener Output.v0'!H35:L35) -> 1.131805107 | F5: ='Screener Output.v0'!L62 -> 145.15 | G5: =SUM('Screener Output.v0'!H63:L63) -> 222.65 | J5: Actual Value | K5: =IF(C5<=3,3,IF((AND((C5>3),(C5<=5))),2,0)) -> 3 | L5: =IF(Efficiency!D5>1.5,1,IF(AND(Efficiency!D5>1.25,Efficiency!D5<1.5),0.75,IF(AND(Efficiency!D5>1,Efficiency!D5<1.25),0.5,IF(AND(Efficiency!D5>0.9,Efficiency!D5<1),1,0)))) -> 0 | M5: =IF(E5>1,4,IF(AND(E5>0.75,E5<1),2,IF(AND(E5>0.5,E5<0.75),1,IF(AND(E5>0,E5<0.5),1,0)))) -> 4 | N5: =IF(F5>1.5,1,IF(AND(F5>1.25,F5<1.5),0.75,IF(AND(F5>1,F5<1.25),0.5,IF(AND(F5>0.9,F5<1),1,0)))) -> 1
B8: Debt/NP | J8: C Liabillity/ C Asset
B22: If the ratio >5, the company has taken more loan than what it chew, affecting PAT. | J22: Are current liabilties able to fund the current asset. Current Liabilities is also called Float (other people's money)
B24: PAT/WC | J24: Change WC and NP
J36: Indicator in internal accruals are getting tied to WC and that is causing company to borrow money for capex.
B38: Source of Cash | J38: CFO/PAT
B52: Limited Capex (higher FCF) and higher operating cash flow are signs of efficient use of capital | J52: CFO to be higher than PAT. Excess CFO helps to fund its business expansion attempts over and above the SSGR levels.
B55: CFO and Operating Profit
B67: A huge difference between the numbers could potentially tell you one of two things — The company has difficulty collecting cash from its clients or it’s reporting revenue aggressively in a bid to boost growth.

Sheet Dupont
D2: ROE/ROA 5 Yr. | K2: ROE/ROA 5 Yr.
C3: Expected | D3: >20% / >2% | J3: Expected Score | K3: 10
C4: Actual | D4: =IF(Valuation_Table!A28=2, G10, SUM('Screener Output.v0'!L35:L35)/SUM('Screener Output.v0'!L60:L60)) -> 0.2010307629 | J4: Actual Score | K4: =IF(Valuation_Table!A28=2, (IF(D4>0.2,10,IF(AND(D4>0.1,D4<0.2),7,IF(AND(D4>0.05,D4<0.1),3,IF(AND(D4>0,D4<0.05),1,0))))), (IF(D4>0.02,10,IF(AND(D4>0.01,D4<0.02),7,IF(AND(D4>0.005,D4<0.01),3,IF(AND(D4>0,D4<0.005),1,0)))))) -> 10
C6: CY-4 | D6: CY-3 | E6: CY-2 | F6: CY-1 | G6: CY0 | H6: CY+1 | K6: 5 YR CAGR | M6: DU Pont Analysis
B7: NPM | C7: =SUM('Screener Output.v0'!H35:H35)/SUM('Screener Output.v0'!H26:H26) -> 0.08982603965 | D7: =SUM('Screener Output.v0'!I35:I35)/SUM('Screener Output.v0'!I26:I26) -> 0.106726325 | E7: =SUM('Screener Output.v0'!J35:J35)/SUM('Screener Output.v0'!J26:J26) -> 0.1310224969 | F7: =SUM('Screener Output.v0'!K35:K35)/SUM('Screener Output.v0'!K26:K26) -> 0.1377996702 | G7: =SUM('Screener Output.v0'!L35:L35)/SUM('Screener Output.v0'!L26:L26) -> 0.1303104683 | H7: ='Screener Output.v0'!M35/'Screener Output.v0'!M26 -> 0.1477018507 | J7: NP | K7: =POWER('Screener Output.v0'!M35/'Screener Output.v0'!G35,1/5)-1 -> 0.2972704971
B8: Asset Turnover | C8: ='Screener Output.v0'!H25/'Screener Output.v0'!H60 -> 0.9922761817 | D8: ='Screener Output.v0'!I25/'Screener Output.v0'!I60 -> 1.159993173 | E8: ='Screener Output.v0'!J25/'Screener Output.v0'!J60 -> 1.164838319 | F8: ='Screener Output.v0'!K25/'Screener Output.v0'!K60 -> 1.152727015 | G8: ='Screener Output.v0'!L25/'Screener Output.v0'!L60 -> 1.00697777 | H8: ='Screener Output.v0'!M26/'Screener Output.v0'!L60 -> 1.041002117 | J8: Sales | K8: =POWER('Screener Output.v0'!M26/'Screener Output.v0'!G26,1/5)-1 -> 0.1264211321
B9: Equity Multiplier | C9: ='Screener Output.v0'!H60/SUM('Screener Output.v0'!H40:H41) -> 2.055131948 | D9: ='Screener Output.v0'!I60/SUM('Screener Output.v0'!I40:I41) -> 1.806821956 | E9: ='Screener Output.v0'!J60/SUM('Screener Output.v0'!J40:J41) -> 1.571734013 | F9: ='Screener Output.v0'!K60/SUM('Screener Output.v0'!K40:K41) -> 1.349938725 | G9: ='Screener Output.v0'!L60/SUM('Screener Output.v0'!L40:L41) -> 1.532016109 | J9: Assets | K9: =POWER('Screener Output.v0'!L60/'Screener Output.v0'!G60,1/5)-1 -> 0.1120628437
B10: ROE | C10: =C7*C8*C9 -> 0.1831785133 | D10: =D7*D8*D9 -> 0.2236878256 | E10: =E7*E8*E9 -> 0.2398780844 | F10: =F7*F8*F9 -> 0.2144315602 | G10: =G7*G8*G9 -> 0.2010307629 | H10: =H7*H8*G9 -> 0.23555964 | J10: Shareholder funds | K10: =POWER(SUM('Screener Output.v0'!L40:L41)/SUM('Screener Output.v0'!G40:G41),1/5)-1 -> 0.2159387388
B11: RoCE | C11: ='Screener Output.v0'!H93 -> 0.1808144403 | D11: ='Screener Output.v0'!I93 -> 0.2265504948 | E11: ='Screener Output.v0'!J93 -> 0.2466151005 | F11: ='Screener Output.v0'!K93 -> 0.2597395854 | G11: ='Screener Output.v0'!L93 -> 0.1994975687 | H11: ='Screener Output.v0'!M93 -> 0.2321841487
B12: RoIC | C12: =('Screener Output.v0'!H35-'Screener Output.v0'!G35)/('Screener Output.v0'!H41-'Screener Output.v0'!G41) -> 0.2774140753 | D12: =('Screener Output.v0'!I35-'Screener Output.v0'!H35)/('Screener Output.v0'!I41-'Screener Output.v0'!H41) -> 0.4301497311 | E12: =('Screener Output.v0'!J35-'Screener Output.v0'!I35)/('Screener Output.v0'!J41-'Screener Output.v0'!I41) -> 0.319088642 | F12: =('Screener Output.v0'!K35-'Screener Output.v0'!J35)/('Screener Output.v0'!K41-'Screener Output.v0'!J41) -> 0.1048856637 | G12: =('Screener Output.v0'!L35-'Screener Output.v0'!K35)/('Screener Output.v0'!L41-'Screener Output.v0'!K41) -> 0.1214727224
B13: DuPont analysis is an extended analysis of a company's return on equity. It concludes that a company can earn a high return on equity if:
B15: 1. It earns a high net profit margin - Preferred
B16: 2. It uses its assets effectively to generate more sales; and/or - Preferred
B17: 3. It has a high financial leverage
F20: NPCY - NPCY-4 | G20: ='Screener Output.v0'!L35-'Screener Output.v0'!G35 -> 100.68 | J20: =G20/G22 -> 0.2246068042
I21: ꓿
F22: NWCY - NWCY-4 | G22: ='Screener Output.v0'!L41-'Screener Output.v0'!G41 -> 448.25

Sheet Others
E2: Promoter Pledged Holding | F2: Promoter Holding 5 Yr. | L2: Promoter Pledged Holding | M2: Promoter Holding 5 Yr.
D3: Expected Value | E3: 0 | F3: >=-3% | K3: Expected Score | L3: 6 | M3: 3
D4: Actual Value | E4: ='Shareholding input'!C7 -> 0 | F4: =SUM('Shareholding input'!C6:C7)-SUM('Shareholding input'!H6:H7) -> 0.0063 | K4: Actual Value | L4: =IF(E4>0,0,6) -> 6 | M4: =IF(F4>-0.03,3,IF(F4=0,2,0)) -> 3
B6: Inventory Days | I6: Inventory/Sales
B19: How effectively inventory is managed by comparing cost of goods sold with average inventory for a period. This measures how many times average inventory is “turned” or sold during a period
B21: Tangible assets | I21: Asset Dist.
B36: Shareholding Dist.
B51: Receivable Days | J51: Liabilty Dist.
B64: Accounts receivable days is the number of days that a customer invoice is outstanding before it is collected - indicator of credit terms offered by the company to its customers and subsequent collection practices

Sheet Piotroski
B2: Piotrosoki Score
B3: Piotroski F Score data | C3: CY | D3: CY-1 | E3: CY-2 | F3: CY-3 | G3: CY-4
B4: ROA | C4: =SUM('Screener Output.v0'!L35:L35)/SUM('Screener Output.v0'!L60:L60) -> 0.1306633733 | D4: =SUM('Screener Output.v0'!K35:K35)/SUM('Screener Output.v0'!K60:K60) -> 0.1586455705 | E4: =SUM('Screener Output.v0'!J35:J35)/SUM('Screener Output.v0'!J60:J60) -> 0.1524205324 | F4: =SUM('Screener Output.v0'!I35:I35)/SUM('Screener Output.v0'!I60:I60) -> 0.1233786693 | G4: =SUM('Screener Output.v0'!H35:H35)/SUM('Screener Output.v0'!H60:H60) -> 0.0888101182
B5: Borrowings / Total Assets | C5: ='Screener Output.v0'!L45/'Screener Output.v0'!L60 -> 0.2743031052 | D5: ='Screener Output.v0'!K45/'Screener Output.v0'!K60 -> 0.1674172935 | E5: ='Screener Output.v0'!J45/'Screener Output.v0'!J60 -> 0.2624708276 | F5: ='Screener Output.v0'!I45/'Screener Output.v0'!I60 -> 0.3008717114 | G5: ='Screener Output.v0'!H45/'Screener Output.v0'!H60 -> 0.4028385032
B6: Current Ratio | C6: =SUM('Screener Output.v0'!L9:L9)/SUM('Screener Output.v0'!L10:L10) -> 6.463547334 | D6: =SUM('Screener Output.v0'!K9:K9)/SUM('Screener Output.v0'!K10:K10) -> 5.820341595 | E6: =SUM('Screener Output.v0'!J9:J9)/SUM('Screener Output.v0'!J10:J10) -> 4.712419911 | F6: =SUM('Screener Output.v0'!I9:I9)/SUM('Screener Output.v0'!I10:I10) -> 3.305875991 | G6: =SUM('Screener Output.v0'!H9:H9)/SUM('Screener Output.v0'!H10:H10) -> 4.035424722
B7: Gross Margin | C7: ='Screener Output.v0'!L29/'Screener Output.v0'!L26 -> 0.2144333888 | D7: ='Screener Output.v0'!K29/'Screener Output.v0'!K26 -> 0.2389476595 | E7: ='Screener Output.v0'!J29/'Screener Output.v0'!J26 -> 0.2209670325 | F7: ='Screener Output.v0'!I29/'Screener Output.v0'!I26 -> 0.1978831893 | G7: ='Screener Output.v0'!H29/'Screener Output.v0'!H26 -> 0.2032560021
B8: PAT | C8: ='Screener Output.v0'!L35 -> 148.12 | D8: ='Screener Output.v0'!K35 -> 134.56 | E8: ='Screener Output.v0'!J35 -> 122.13 | F8: ='Screener Output.v0'!I35 -> 93.98 | G8: ='Screener Output.v0'!H35 -> 64.39
B9: Operating Cash Flow | C9: ='Screener Output.v0'!L62 -> 145.15 | D9: ='Screener Output.v0'!K62 -> 101.78 | E9: ='Screener Output.v0'!J62 -> 160.98 | F9: ='Screener Output.v0'!I62 -> 104.71 | G9: ='Screener Output.v0'!H62 -> 124.79
B10: Shares Outstanding | C10: ='Screener Output.v0'!L40 -> 26.61 | D10: ='Screener Output.v0'!K40 -> 26.61 | E10: ='Screener Output.v0'!J40 -> 26.61 | F10: ='Screener Output.v0'!I40 -> 26.61 | G10: ='Screener Output.v0'!H40 -> 26.61
B11: Asset Turnover | C11: ='Screener Output.v0'!L25/'Screener Output.v0'!L49 -> 1.00697777 | D11: ='Screener Output.v0'!K25/'Screener Output.v0'!K49 -> 1.152727015 | E11: ='Screener Output.v0'!J25/'Screener Output.v0'!J49 -> 1.164838319 | F11: ='Screener Output.v0'!I25/'Screener Output.v0'!I49 -> 1.159993173 | G11: ='Screener Output.v0'!H25/'Screener Output.v0'!H49 -> 0.9922761817
H12: Start | I12: 0 | J12: Value | K12: =(C23/9)*100 -> 33.33333333
H13: Intial | I13: 30 | J13: Pointer | K13: 1
B14: Piotroski 1: PAT >0 | C14: =--(C8>0) -> 1 | H14: Middle | I14: 40 | J14: End | K14: =SUM(I12:I16) - SUM(K12:K13) -> 165.6666667
B15: Piotroski 2: Operating Cash Flow >0 | C15: =--(C9>0) -> 1 | H15: End | I15: 30
B16: Piotroski 3: Return on Assets higher than last Yr. | C16: =--(C4>D4) -> 0 | H16: Max | I16: 100
B17: Piotroski 4: Operating Cash Flow higher than PAT | C17: =--(C9>C8) -> 0
B18: Piotroski 5: Borrowings/Assets lower than last Yr. | C18: =--(C5<D5) -> 0
B19: Piotroski 6: Current Ratio than last Yr. | C19: =--(C6>D6) -> 1
B20: Piotroski 7: Shares Outstanding not higher than last Yr. | C20: =--(C10<D10) -> 0
B21: Piotroski 8: Gross Margin higher than last Yr. | C21: =--(C7>D7) -> 0
B22: Piotroski 9: Total Income/Total Assets higher than last Yr. | C22: =--(C11>D11) -> 0
B23: Piotroski F Score | C23: =SUM(C14:C22) -> 3
B35: Weak
B36: Stable
B37: Strong

Sheet Altman
B2: Altman Zscore
B3: Altman Zscore = 1.2T1 + 1.4T2 + 3.3T3 + 0.6T4 + 0.999T5.
B4: Input | C4: CY | E4: T1 = Working Capital/Total Assets | F4: =C5/C6 -> 0.3986326747 | G4: Altman Score | I4: Pointer
B5: Working Capital | C5: ='Screener Output.v0'!L52 -> 451.89 | E5: T2 = Reserves & Surplus/Total Assets | F5: =C8/C6 -> 0.6292607622 | G5: Start | H5: 0 | I5: Value | J5: =(C14/6)*100 -> 83.08955731
B6: Total Assets | C6: ='Screener Output.v0'!L60 -> 1133.6 | E6: T3 = EBITDA/Total Assets | F6: =C9/C6 -> 0.2150141143 | G6: Intial | H6: 30 | I6: Pointer | J6: 1
B7: Total Liabilities | C7: ='Screener Output.v0'!L60 -> 1133.6 | E7: T4 = Market Value of Equity/Total Assets | F7: ='Screener Output.v0'!B38/'Screener Output.v0'!L60 -> 3.191328511 | G7: Middle | H7: 20 | I7: End | J7: =SUM(H5:H9) - SUM(J5:J6) -> 115.9104427
B8: Reserves & Surplus | C8: ='Screener Output.v0'!L41 -> 713.33 | E8: T5 = Net Sales/Total Assets | F8: =C11/C6 -> 1.002708186 | G8: End | H8: 50
B9: EBITDA | C9: ='Screener Output.v0'!L29 -> 243.74 | G9: Max | H9: 100
B10: Market Value of Equity | C10: ='Screener Output.v0'!B38 -> 3617.69 | G10: =IF(SUM(C1:D1)>=20,20,SUM(C1:D1)) -> 0
B11: Net Sales | C11: ='Screener Output.v0'!L26 -> 1136.67
B14: Score | C14: =IF((1.2*F4+1.4*F5+3.3*F6+0.6*F7+0.999*F8)>=6,6,(1.2*F4+1.4*F5+3.3*F6+0.6*F7+0.999*F8)) -> 4.985373439
B16: How to read score
B17: Less Chances of Bankruptcy | C17: 1.8 to 3
B18: Not likely to be Bankrupt | C18: 3+
B19: Likely to be Bankrupt | C19: 0 to 1.8
B32: Likely to be Bankrupt
B33: Less Chances of Bankruptcy
B34: Not likely to be Bankrupt

Sheet ||

Sheet Analysis (hidden)
B2: PE | C2: PB | D2: OTHERS | E2: Gross Profit Margin | F2: Net Profit Margin | G2: Inventory/Sales | H2: Receivables/ Sales | I2: Current Cash/Assets | J2: Current Assets/Current Liabilities | K2: Leverage | L2: Debt/PAT | M2: ROE | N2: ROCE | O2: ROA
B3: =AVERAGE('Screener Output.v0'!H76:L76) -> 24.10848216 | C3: =AVERAGE('Screener Output.v0'!H78:L78) -> 5.17464384 | D3: 5 Yr. Average | E3: =SUM('Screener Output.v0'!H29:L29)/SUM('Screener Output.v0'!H26:L26) -> 0.2160363927 | F3: =SUM('Screener Output.v0'!H35:M35)/SUM('Screener Output.v0'!H26:M26) -> 0.1266544961 | G3: =SUM('Screener Output.v0'!H6:L6)/SUM('Screener Output.v0'!H26:L26) -> 0.1779140972 | H3: =SUM('Screener Output.v0'!H7:L7)/SUM('Screener Output.v0'!H26:L26) -> 0.149241065 | I3: =SUM('Screener Output.v0'!H55:L55)/SUM('Screener Output.v0'!H60:L60) -> 0.03295002108 | J3: =SUM('Screener Output.v0'!H9:L9)/SUM('Screener Output.v0'!H10:L10) -> 4.760389955 | K3: =SUM('Screener Input'!G66:K66)/SUM('Screener Input'!G57:K58) -> 1.609775224 | L3: =SUM('Screener Output.v0'!H45:L45)/SUM('Screener Output.v0'!H35:L35) -> 2.103252956 | M3: =SUM('Screener Output.v0'!H35:L35)/SUM('Screener Output.v0'!H40:L41) -> 0.2123268562 | N3: =SUM('Screener Output.v0'!H35:L35)/SUM('Screener Output.v0'!H42:L45) -> 0.1467788049 | O3: =SUM('Screener Output.v0'!H35:L35)/SUM('Screener Output.v0'!H60:L60) -> 0.1318984496
B4: ='Screener Output.v0'!L76 -> 26.17298121 | C4: ='Screener Output.v0'!L78 -> 5.239619032 | D4: Current | E4: ='Screener Output.v0'!L29/'Screener Output.v0'!L26 -> 0.2144333888 | F4: ='Screener Output.v0'!M35/'Screener Output.v0'!M26 -> 0.1477018507 | G4: =SUM('Screener Output.v0'!L6:L6)/SUM('Screener Output.v0'!L26:L26) -> 0.1611373574 | H4: =SUM('Screener Output.v0'!L7:L7)/SUM('Screener Output.v0'!L26:L26) -> 0.1601432254 | I4: ='Screener Output.v0'!L55/'Screener Output.v0'!L60 -> 0.03899964714 | J4: =SUM('Screener Output.v0'!L9:L9)/SUM('Screener Output.v0'!L10:L10) -> 6.463547334 | K4: =SUM('Screener Input'!K66:K66)/SUM('Screener Input'!K57:K58) -> 1.532016109 | L4: =SUM('Screener Output.v0'!L45:L45)/SUM('Screener Output.v0'!M35:M35) -> 1.783993115 | M4: =Dupont!H10 -> 0.23555964 | N4: =SUM('Screener Output.v0'!L35:L35)/SUM('Screener Output.v0'!L42:L45) -> 0.1409471971 | O4: =SUM('Screener Output.v0'!L35:L35)/SUM('Screener Output.v0'!L60:L60) -> 0.1306633733
B5: =MAX('Screener Output.v0'!H76:L76) -> 34.05229408 | C5: =MAX('Screener Output.v0'!H78:L78) -> 7.292700565 | D5: 5 Yr. Max
D7: CASH FLOW | E7: CFO | F7: CFF/CFO | G7: Capex/CFO | H7: CFO/PAT | I7: CFO/Sales | J7: CFO/Assets | K7: CFO/Current Liabilty | L7: CFO/Total Debt | M7: FCF/CFO | N7: CAPEX/FCF
D8: 5 Yr. Average | E8: =AVERAGE('Screener Output.v0'!H62:L62) -> 127.482 | F8: =SUM('Screener Output.v0'!H65:L65)/SUM('Screener Output.v0'!H62:L62) -> -0.2700773443 | G8: =SUM('Screener Output.v0'!H23:L23)/SUM('Screener Output.v0'!H62:L62) -> 0.6506957845 | H8: =SUM('Screener Output.v0'!H62:L62)/SUM('Screener Output.v0'!H35:L35) -> 1.131805107 | I8: =SUM('Screener Output.v0'!H62:L62)/SUM('Screener Output.v0'!H26:L26) -> 0.1372932502 | J8: =SUM('Screener Output.v0'!H62:L62)/SUM('Screener Output.v0'!H60:L60) -> 0.1492833388 | K8: =SUM('Screener Output.v0'!H62:L62)/SUM('Screener Output.v0'!H48:L48) -> 1.472520618 | L8: =SUM('Screener Output.v0'!H62:L62)/SUM('Screener Output.v0'!H45:L45) -> 0.5381212484 | M8: =SUM('Screener Output.v0'!H63:L63)/SUM('Screener Output.v0'!H62:L62) -> 0.3493042155 | N8: =SUM('Screener Output.v0'!H23:L23)/SUM('Screener Output.v0'!H63:L63) -> 1.862834044
D9: Current | E9: ='Screener Output.v0'!L62 -> 145.15 | F9: =SUM('Screener Output.v0'!L65:L65)/SUM('Screener Output.v0'!L62:L62) -> 0.8882535308 | G9: =SUM('Screener Output.v0'!L23:L23)/SUM('Screener Output.v0'!L62:L62) -> 1.640854289 | H9: =SUM('Screener Output.v0'!L62:L62)/SUM('Screener Output.v0'!L35:L35) -> 0.9799486903 | I9: =SUM('Screener Output.v0'!L62:L62)/SUM('Screener Output.v0'!L26:L26) -> 0.1276975727 | J9: =SUM('Screener Output.v0'!L62:L62)/SUM('Screener Output.v0'!L60:L60) -> 0.1280434016 | K9: =SUM('Screener Output.v0'!L62:L62)/SUM('Screener Output.v0'!L48:L48) -> 1.754926853 | L9: =SUM('Screener Output.v0'!L62:L62)/SUM('Screener Output.v0'!L45:L45) -> 0.4667953047 | M9: =SUM('Screener Output.v0'!L63:L63)/SUM('Screener Output.v0'!L62:L62) -> -0.6408542887 | N9: =SUM('Screener Output.v0'!L23:L23)/SUM('Screener Output.v0'!L63:L63) -> -2.560417115
D11: GROWTH | E11: Sales | F11: Inventory | G11: Receivables | H11: PAT | I11: EPS | J11: BVPS | K11: CFO | L11: FCF | M11: Networth
D12: 10 YR CAGR | E12: =POWER('Screener Output.v0'!M25/'Screener Output.v0'!C25,1/9)-1 -> 0.1080783649 | F12: =('Screener Output.v0'!L6/'Screener Output.v0'!C6)^(1/9)-1 -> 0.1080057875 | G12: =('Screener Output.v0'!L7/'Screener Output.v0'!C7)^(1/9)-1 -> 0.0983477052 | H12: =POWER('Screener Output.v0'!M35/'Screener Output.v0'!C35,1/9)-1 -> 0.3044373636 | I12: =('Screener Output.v0'!M74/'Screener Output.v0'!C74)^(1/9)-1 -> 0.1992151668 | J12: =('Screener Output.v0'!L73/'Screener Output.v0'!C73)^(1/9)-1 -> 0.08632612003 | K12: =('Screener Output.v0'!L62/'Screener Output.v0'!C62)^(1/9)-1 -> 0.1441166563 | L12: =('Screener Output.v0'!L63/'Screener Output.v0'!C62)^(1/9)-1 -> -2.088927884 | M12: =('Screener Output.v0'!L42/'Screener Output.v0'!C42)^(1/9)-1 -> 0.1732971056
D13: 5 YR CAGR | E13: =POWER('Screener Output.v0'!M25/'Screener Output.v0'!G25,1/5)-1 -> 0.1264802746 | F13: =('Screener Output.v0'!L6/'Screener Output.v0'!G6)^(1/5)-1 -> 0.03327152851 | G13: =('Screener Output.v0'!L7/'Screener Output.v0'!G7)^(1/5)-1 -> 0.1586577867 | H13: =POWER('Screener Output.v0'!M35/'Screener Output.v0'!G35,1/5)-1 -> 0.2972704971 | I13: =('Screener Output.v0'!M74/'Screener Output.v0'!G74)^(1/5)-1 -> 0.1293871793 | J13: =('Screener Output.v0'!L73/'Screener Output.v0'!G73)^(1/5)-1 -> 0.058536154 | K13: =('Screener Output.v0'!L62/'Screener Output.v0'!G62)^(1/5)-1 -> 0.4204588722 | L13: =('Screener Output.v0'!L63/'Screener Output.v0'!G63)^(1/5)-1 -> -2.479320657 | M13: =('Screener Output.v0'!L42/'Screener Output.v0'!G42)^(1/5)-1 -> 0.2159387388

Sheet Screener Output.v0 (hidden)
A1: ='Screener Input'!B1 -> CCL PRODUCTS (INDIA) LTD
A3: COPY PASTE DATA FROM ANY FINANCIAL WEBSITE: ONLY FOR THE FIELDS MARKED GREEN BELOW
A4: ='Screener Input'!A1 -> COMPANY NAME | C4: =EOMONTH('Screener Input'!B$16,-1)+1 -> 2009-03-01 | D4: =EOMONTH('Screener Input'!C$16,-1)+1 -> 2010-03-01 | E4: =EOMONTH('Screener Input'!D$16,-1)+1 -> 2011-03-01 | F4: =EOMONTH('Screener Input'!E$16,-1)+1 -> 2012-03-01 | G4: =EOMONTH('Screener Input'!F$16,-1)+1 -> 2013-03-01 | H4: =EOMONTH('Screener Input'!G$16,-1)+1 -> 2014-03-01 | I4: =EOMONTH('Screener Input'!H$16,-1)+1 -> 2015-03-01 | J4: =EOMONTH('Screener Input'!I$16,-1)+1 -> 2016-03-01 | K4: =EOMONTH('Screener Input'!J$16,-1)+1 -> 2017-03-01 | L4: =EOMONTH('Screener Input'!K$16,-1)+1 -> 2018-03-01
A5: CONSOLIDATED
A6: Inventory | C6: ='Screener Output.v0'!C54 -> 72.77 | D6: ='Screener Output.v0'!D54 -> 85.85 | E6: ='Screener Output.v0'!E54 -> 89.39 | F6: ='Screener Output.v0'!F54 -> 117.15 | G6: ='Screener Output.v0'!G54 -> 155.51 | H6: ='Screener Output.v0'!H54 -> 137.95 | I6: ='Screener Output.v0'!I54 -> 173.53 | J6: ='Screener Output.v0'!J54 -> 148.6 | K6: ='Screener Output.v0'!K54 -> 182.76 | L6: ='Screener Output.v0'!L54 -> 183.16
A7: Debtors | C7: =C53 -> 78.25 | D7: 72.34 | E7: 50.1 | F7: 70.42 | G7: 87.17 | H7: 106.75 | I7: 113.22 | J7: 128.14 | K7: 162.74 | L7: 182.03
A8: Cash | C8: =C55 -> 9.24 | D8: 6.16 | E8: 40.99 | F8: 5.64 | G8: 9.35 | H8: 34.38 | I8: 26.63 | J8: 18.68 | K8: 16.79 | L8: 44.21
A9: Current Assets | C9: =C47 -> 190.36 | D9: 200.45 | E9: 193.06 | F9: 218.2 | G9: 330.62 | H9: 323.52 | I9: 366.82 | J9: 382.46 | K9: 453.23 | L9: 534.6
A10: Current Liabilities | C10: 47 | D10: 54.44 | E10: 72.24 | F10: 63.15 | G10: 86.1 | H10: 80.17 | I10: 110.96 | J10: 81.16 | K10: 77.87 | L10: 82.71
A11: Working Capital (check) | C11: =C9-C10 -> 143.36 | D11: 146.01 | E11: 120.82 | F11: 155.05 | G11: 244.52 | H11: 243.35 | I11: 255.86 | J11: 301.3 | K11: 375.36 | L11: 451.89
A13: COPY PASTE DATA FROM ANNUAL REPORTS: ONLY FOR THE FIELDS MARKED ORANGE BELOW
A14: Operating Expenses/Capex | C14: =C4 -> 2009-03-01 | D14: 2010-03-01 | E14: 2011-03-01 | F14: 2012-03-01 | G14: 2013-03-01 | H14: 2014-03-01 | I14: 2015-03-01 | J14: 2016-03-01 | K14: 2017-03-01 | L14: 2018-03-01
A15: Raw Materials | C15: ='Screener Input'!B18 -> 347.68 | D15: ='Screener Input'!C18 -> 285.02 | E15: ='Screener Input'!D18 -> 222.77 | F15: ='Screener Input'!E18 -> 299.43 | G15: ='Screener Input'!F18 -> 396.68 | H15: ='Screener Input'!G18 -> 419.98 | I15: ='Screener Input'!H18 -> 555.33 | J15: ='Screener Input'!I18 -> 546.29 | K15: ='Screener Input'!J18 -> 544.06 | L15: ='Screener Input'!K18 -> 719.51
A16: Employee cost | C16: ='Screener Input'!B22 -> 9.18 | D16: ='Screener Input'!C22 -> 9.31 | E16: ='Screener Input'!D22 -> 9.78 | F16: ='Screener Input'!E22 -> 10.95 | G16: ='Screener Input'!F22 -> 15.21 | H16: ='Screener Input'!G22 -> 17.03 | I16: ='Screener Input'!H22 -> 18.6 | J16: ='Screener Input'!I22 -> 22.83 | K16: ='Screener Input'!J22 -> 27.6 | L16: ='Screener Input'!K22 -> 32.52
A17: Advertising and sales promotion | C17: ='Screener Input'!B23 -> 21.14 | D17: ='Screener Input'!C23 -> 22.47 | E17: ='Screener Input'!D23 -> 16.62 | F17: ='Screener Input'!E23 -> 21.44 | G17: ='Screener Input'!F23 -> 26.86 | H17: ='Screener Input'!G23 -> 27.62 | I17: ='Screener Input'!H23 -> 41.06 | J17: ='Screener Input'!I23 -> 42.83 | K17: ='Screener Input'!J23 -> 52.07 | L17: ='Screener Input'!K23 -> 62.66
A18: Freight, transport and distribution
A19: Royalty
A20: Power and fuel | C20: ='Screener Input'!B20 -> 10.15 | D20: ='Screener Input'!C20 -> 16.37 | E20: ='Screener Input'!D20 -> 23.16 | F20: ='Screener Input'!E20 -> 25.29 | G20: ='Screener Input'!F20 -> 40.95 | H20: ='Screener Input'!G20 -> 38.34 | I20: ='Screener Input'!H20 -> 41.61 | J20: ='Screener Input'!I20 -> 41.83 | K20: ='Screener Input'!J20 -> 35.72 | L20: ='Screener Input'!K20 -> 43.26
A21: Miscellaneous expenses | C21: ='Screener Input'!B24 -> 2.57 | D21: ='Screener Input'!C24 -> -0.07 | E21: ='Screener Input'!D24 -> 1 | F21: ='Screener Input'!E24 -> 14.95 | G21: ='Screener Input'!F24 -> 9.59 | H21: ='Screener Input'!G24 -> 11.4 | I21: ='Screener Input'!H24 -> 10.82 | J21: ='Screener Input'!I24 -> 10.67 | K21: ='Screener Input'!J24 -> 7.34 | L21: ='Screener Input'!K24 -> 7.04
A22: R&D Cost
A23: Capex | D23: =(D50-C50)+(D51-C51)+D30 -> 44.82 | E23: 43.3 | F23: 55.86 | G23: 11.97 | H23: 94.71 | I23: 20.21 | J23: 52.29 | K23: 9.38 | L23: 238.17
A24: ='Screener Input'!A1 -> COMPANY NAME | C24: =C14 -> 2009-03-01 | D24: 2010-03-01 | E24: 2011-03-01 | F24: 2012-03-01 | G24: 2013-03-01 | H24: 2014-03-01 | I24: 2015-03-01 | J24: 2016-03-01 | K24: 2017-03-01 | L24: 2018-03-01 | M24: TTMI | N24: TTMI-1
A25: Total Income | C25: ='Screener Input'!B17+'Screener Input'!B25 -> 470.05 | D25: ='Screener Input'!C17+'Screener Input'!C25 -> 443.07 | E25: ='Screener Input'!D17+'Screener Input'!D25 -> 373.65 | F25: ='Screener Input'!E17+'Screener Input'!E25 -> 504.23 | G25: ='Screener Input'!F17+'Screener Input'!F25 -> 652.62 | H25: ='Screener Input'!G17+'Screener Input'!G25 -> 719.43 | I25: ='Screener Input'!H17+'Screener Input'!H25 -> 883.59 | J25: ='Screener Input'!I17+'Screener Input'!I25 -> 933.35 | K25: ='Screener Input'!J17+'Screener Input'!J25 -> 977.72 | L25: ='Screener Input'!K17+'Screener Input'!K25 -> 1141.51 | M25: =SUM('Screener Input'!H42:K42)+SUM('Screener Input'!H44:K44) -> 1183.8 | N25: =SUM('Screener Input'!D42:G42)+SUM('Screener Input'!D44:G44) -> 1134.34
A26: Sales | C26: ='Screener Input'!B17 -> 468.25 | D26: ='Screener Input'!C17 -> 437.54 | E26: ='Screener Input'!D17 -> 363.87 | F26: ='Screener Input'!E17 -> 502.22 | G26: ='Screener Input'!F17 -> 650.74 | H26: ='Screener Input'!G17 -> 716.83 | I26: ='Screener Input'!H17 -> 880.57 | J26: ='Screener Input'!I17 -> 932.13 | K26: ='Screener Input'!J17 -> 976.49 | L26: ='Screener Input'!K17 -> 1136.67 | M26: =SUM('Screener Input'!H42:K42) -> 1180.08 | N26: =SUM('Screener Input'!D42:G42) -> 1131.08
A27: =A15 -> Raw Materials | C27: 347.68 | D27: 285.02 | E27: 222.77 | F27: 299.43 | G27: 396.68 | H27: 419.98 | I27: 555.33 | J27: 546.29 | K27: 544.06 | L27: 719.51
A28: Gross Profit | C28: =C26-C27 -> 120.57 | D28: 152.52 | E28: 141.1 | F28: 202.79 | G28: 254.06 | H28: 296.85 | I28: 325.24 | J28: 385.84 | K28: 432.43 | L28: 417.16
A29: EBITDA | C29: ='Screener Input'!B17-'Screener Input'!B18-'Screener Input'!B20-'Screener Input'!B21-'Screener Input'!B22-'Screener Input'!B23-'Screener Input'!B24+'Screener Input'!B25+'Screener Input'!B19 -> 53.93 | D29: ='Screener Input'!C17-'Screener Input'!C18-'Screener Input'!C20-'Screener Input'!C21-'Screener Input'!C22-'Screener Input'!C23-'Screener Input'!C24+'Screener Input'!C25+'Screener Input'!C19 -> 67.02 | E29: ='Screener Input'!D17-'Screener Input'!D18-'Screener Input'!D20-'Screener Input'!D21-'Screener Input'!D22-'Screener Input'!D23-'Screener Input'!D24+'Screener Input'!D25+'Screener Input'!D19 -> 74.52 | F29: ='Screener Input'!E17-'Screener Input'!E18-'Screener Input'!E20-'Screener Input'!E21-'Screener Input'!E22-'Screener Input'!E23-'Screener Input'!E24+'Screener Input'!E25+'Screener Input'!E19 -> 89.12 | G29: ='Screener Input'!F17-'Screener Input'!F18-'Screener Input'!F20-'Screener Input'!F21-'Screener Input'!F22-'Screener Input'!F23-'Screener Input'!F24+'Screener Input'!F25+'Screener Input'!F19 -> 123.16 | H29: ='Screener Input'!G17-'Screener Input'!G18-'Screener Input'!G20-'Screener Input'!G21-'Screener Input'!G22-'Screener Input'!G23-'Screener Input'!G24+'Screener Input'!G25+'Screener Input'!G19 -> 145.7 | I29: ='Screener Input'!H17-'Screener Input'!H18-'Screener Input'!H20-'Screener Input'!H21-'Screener Input'!H22-'Screener Input'!H23-'Screener Input'!H24+'Screener Input'!H25+'Screener Input'!H19 -> 174.25 | J29: ='Screener Input'!I17-'Screener Input'!I18-'Screener Input'!I20-'Screener Input'!I21-'Screener Input'!I22-'Screener Input'!I23-'Screener Input'!I24+'Screener Input'!I25+'Screener Input'!I19 -> 205.97 | K29: ='Screener Input'!J17-'Screener Input'!J18-'Screener Input'!J20-'Screener Input'!J21-'Screener Input'!J22-'Screener Input'!J23-'Screener Input'!J24+'Screener Input'!J25+'Screener Input'!J19 -> 233.33 | L29: ='Screener Input'!K17-'Screener Input'!K18-'Screener Input'!K20-'Screener Input'!K21-'Screener Input'!K22-'Screener Input'!K23-'Screener Input'!K24+'Screener Input'!K25+'Screener Input'!K19 -> 243.74 | M29: =SUM('Screener Input'!H50:K50)+SUM('Screener Input'!H44:K44) -> 279.33 | N29: =SUM('Screener Input'!D50:G50) -> 244.33
A30: Depreciation & Amortisation | C30: ='Screener Input'!B26 -> 14.36 | D30: ='Screener Input'!C26 -> 14.3 | E30: ='Screener Input'!D26 -> 19.26 | F30: ='Screener Input'!E26 -> 20.1 | G30: ='Screener Input'!F26 -> 28.64 | H30: ='Screener Input'!G26 -> 29.1 | I30: ='Screener Input'!H26 -> 26.82 | J30: ='Screener Input'!I26 -> 28.38 | K30: ='Screener Input'!J26 -> 33.25 | L30: ='Screener Input'!K26 -> 34.09 | M30: =SUM('Screener Input'!H45:K45) -> 35.33
A31: EBIT (Operating Profit) | C31: =C29-C30 -> 39.57 | D31: 52.72 | E31: 55.26 | F31: 69.02 | G31: 94.52 | H31: 116.6 | I31: 147.43 | J31: 177.59 | K31: 200.08 | L31: 209.65 | M31: 244
A32: Interest | C32: ='Screener Input'!B27 -> 19.24 | D32: ='Screener Input'!C27 -> 16.24 | E32: ='Screener Input'!D27 -> 15.94 | F32: ='Screener Input'!E27 -> 14.85 | G32: ='Screener Input'!F27 -> 20.66 | H32: ='Screener Input'!G27 -> 17.06 | I32: ='Screener Input'!H27 -> 13.61 | J32: ='Screener Input'!I27 -> 10.82 | K32: ='Screener Input'!J27 -> 11.17 | L32: ='Screener Input'!K27 -> 7.83 | M32: =SUM('Screener Input'!H46:K46) -> 9.64
A33: PBT | C33: =C31-C32 -> 20.33 | D33: 36.48 | E33: 39.32 | F33: 54.17 | G33: 73.86 | H33: 99.54 | I33: 133.82 | J33: 166.77 | K33: 188.91 | L33: 201.82
A34: Tax | C34: ='Screener Input'!B29 -> 4.39 | D34: ='Screener Input'!C29 -> 8.2 | E34: ='Screener Input'!D29 -> 12.87 | F34: ='Screener Input'!E29 -> 17.93 | G34: ='Screener Input'!F29 -> 26.42 | H34: ='Screener Input'!G29 -> 35.15 | I34: ='Screener Input'!H29 -> 39.84 | J34: ='Screener Input'!I29 -> 44.64 | K34: ='Screener Input'!J29 -> 54.35 | L34: ='Screener Input'!K29 -> 53.7 | M34: =SUM('Screener Input'!H48:K48) -> 60.03
A35: PAT | C35: =C33-C34 -> 15.94 | D35: 28.28 | E35: 26.45 | F35: 36.24 | G35: 47.44 | H35: 64.39 | I35: 93.98 | J35: 122.13 | K35: 134.56 | L35: 148.12 | M35: =SUM('Screener Input'!H49:K49) -> 174.3 | N35: =SUM('Screener Input'!D49:G49) -> 141.69
A36: Dividends | C36: ='Screener Input'!B31 -> 1.33 | D36: ='Screener Input'!C31 -> 2 | E36: ='Screener Input'!D31 -> 2.66 | F36: ='Screener Input'!E31 -> 6.65 | G36: ='Screener Input'!F31 -> 6.65 | H36: ='Screener Input'!G31 -> 15.97 | I36: ='Screener Input'!H31 -> 19.96 | J36: ='Screener Input'!I31 -> 33.26 | K36: ='Screener Input'!J31 -> 33.26 | L36: ='Screener Input'!K31 -> 33.26
A37: Market Cap | C37: ='Screener Input'!B90*'Screener Input'!B93 -> 55.25832136 | D37: ='Screener Input'!C90*'Screener Input'!C93 -> 148.2691217 | E37: ='Screener Input'!D90*'Screener Input'!D93 -> 163.4458048 | F37: ='Screener Input'!E90*'Screener Input'!E93 -> 111.3177635 | G37: ='Screener Input'!F90*'Screener Input'!F93 -> 181.9755432 | H37: ='Screener Input'!G90*'Screener Input'!G93 -> 734.5941821 | I37: ='Screener Input'!H90*'Screener Input'!H93 -> 2591.982507 | J37: ='Screener Input'!I90*'Screener Input'!I93 -> 2605.281801 | K37: ='Screener Input'!J90*'Screener Input'!J93 -> 4582.076692 | L37: ='Screener Input'!K90*'Screener Input'!K93 -> 3877.003707
A38: Current Market Cap | B38: ='Screener Input'!B9 -> 3617.69 | L38: =L35+L34+L32+L30 -> 243.74
A39: Current EPS
A40: Equity | C40: ='Screener Input'!B57 -> 13.3 | D40: ='Screener Input'!C57 -> 13.3 | E40: ='Screener Input'!D57 -> 13.3 | F40: ='Screener Input'!E57 -> 13.3 | G40: ='Screener Input'!F57 -> 13.3 | H40: ='Screener Input'!G57 -> 26.61 | I40: ='Screener Input'!H57 -> 26.61 | J40: ='Screener Input'!I57 -> 26.61 | K40: ='Screener Input'!J57 -> 26.61 | L40: ='Screener Input'!K57 -> 26.61
A41: Reserves & Surplus | C41: ='Screener Input'!B58 -> 162.3 | D41: ='Screener Input'!C58 -> 187.56 | E41: ='Screener Input'!D58 -> 203.86 | F41: ='Screener Input'!E58 -> 226.44 | G41: ='Screener Input'!F58 -> 265.08 | H41: ='Screener Input'!G58 -> 326.18 | I41: ='Screener Input'!H58 -> 394.97 | J41: ='Screener Input'!I58 -> 483.19 | K41: ='Screener Input'!J58 -> 601.7 | L41: ='Screener Input'!K58 -> 713.33
A42: Networth | C42: =C41+C40 -> 175.6 | D42: 200.86 | E42: 217.16 | F42: 239.74 | G42: 278.38 | H42: 352.79 | I42: 421.58 | J42: 509.8 | K42: 628.31 | L42: 739.94
A43: Secured Loans
A44: Unsecured Loans
A45: Borrowings | C45: ='Screener Input'!B59 -> 238.92 | D45: ='Screener Input'!C59 -> 236.58 | E45: ='Screener Input'!D59 -> 220.47 | F45: ='Screener Input'!E59 -> 267.88 | G45: ='Screener Input'!F59 -> 302.04 | H45: ='Screener Input'!G59 -> 292.07 | I45: ='Screener Input'!H59 -> 229.18 | J45: ='Screener Input'!I59 -> 210.31 | K45: ='Screener Input'!J59 -> 142 | L45: ='Screener Input'!K59 -> 310.95
A46: Other Liabilities | C46: ='Screener Input'!B60 -> 47 | D46: ='Screener Input'!C60 -> 54.44 | E46: ='Screener Input'!D60 -> 72.24 | F46: ='Screener Input'!E60 -> 63.15 | G46: ='Screener Input'!F60 -> 86.1 | H46: ='Screener Input'!G60 -> 80.17 | I46: ='Screener Input'!H60 -> 110.96 | J46: ='Screener Input'!I60 -> 81.16 | K46: ='Screener Input'!J60 -> 77.87 | L46: ='Screener Input'!K60 -> 82.71
A47: Current Asset | C47: ='Screener Input'!B65 -> 190.36 | D47: ='Screener Input'!C65 -> 200.45 | E47: ='Screener Input'!D65 -> 193.06 | F47: ='Screener Input'!E65 -> 218.2 | G47: ='Screener Input'!F65 -> 330.62 | H47: ='Screener Input'!G65 -> 323.52 | I47: ='Screener Input'!H65 -> 366.82 | J47: ='Screener Input'!I65 -> 382.46 | K47: ='Screener Input'!J65 -> 453.23 | L47: ='Screener Input'!K65 -> 534.6
A48: Current Liabilities | C48: ='Screener Input'!B60 -> 47 | D48: ='Screener Input'!C60 -> 54.44 | E48: ='Screener Input'!D60 -> 72.24 | F48: ='Screener Input'!E60 -> 63.15 | G48: ='Screener Input'!F60 -> 86.1 | H48: ='Screener Input'!G60 -> 80.17 | I48: ='Screener Input'!H60 -> 110.96 | J48: ='Screener Input'!I60 -> 81.16 | K48: ='Screener Input'!J60 -> 77.87 | L48: ='Screener Input'!K60 -> 82.71
A49: Total Assets | C49: ='Screener Input'!B66 -> 461.52 | D49: ='Screener Input'!C66 -> 491.88 | E49: ='Screener Input'!D66 -> 509.87 | F49: ='Screener Input'!E66 -> 570.77 | G49: ='Screener Input'!F66 -> 666.52 | H49: ='Screener Input'!G66 -> 725.03 | I49: ='Screener Input'!H66 -> 761.72 | J49: ='Screener Input'!I66 -> 801.27 | K49: ='Screener Input'!J66 -> 848.18 | L49: ='Screener Input'!K66 -> 1133.6
A50: Net Fixed Assets | C50: ='Screener Input'!B62 -> 230.26 | D50: ='Screener Input'!C62 -> 217.82 | E50: ='Screener Input'!D62 -> 273.33 | F50: ='Screener Input'!E62 -> 257.42 | G50: ='Screener Input'!F62 -> 334.4 | H50: ='Screener Input'!G62 -> 361.13 | I50: ='Screener Input'!H62 -> 339.97 | J50: ='Screener Input'!I62 -> 417.31 | K50: ='Screener Input'!J62 -> 393.28 | L50: ='Screener Input'!K62 -> 371.13
A51: Capital Work in Progress | C51: ='Screener Input'!B63 -> 30.49 | D51: ='Screener Input'!C63 -> 73.45 | E51: ='Screener Input'!D63 -> 41.98 | F51: ='Screener Input'!E63 -> 93.65 | G51: ='Screener Input'!F63 -> 0 | H51: ='Screener Input'!G63 -> 38.88 | I51: ='Screener Input'!H63 -> 53.43 | J51: ='Screener Input'!I63 -> 0 | K51: ='Screener Input'!J63 -> 0.16 | L51: ='Screener Input'!K63 -> 226.39
A52: Working Capital | C52: ='Screener Input'!B65-'Screener Input'!B60 -> 143.36 | D52: ='Screener Input'!C65-'Screener Input'!C60 -> 146.01 | E52: ='Screener Input'!D65-'Screener Input'!D60 -> 120.82 | F52: ='Screener Input'!E65-'Screener Input'!E60 -> 155.05 | G52: ='Screener Input'!F65-'Screener Input'!F60 -> 244.52 | H52: ='Screener Input'!G65-'Screener Input'!G60 -> 243.35 | I52: ='Screener Input'!H65-'Screener Input'!H60 -> 255.86 | J52: ='Screener Input'!I65-'Screener Input'!I60 -> 301.3 | K52: ='Screener Input'!J65-'Screener Input'!J60 -> 375.36 | L52: ='Screener Input'!K65-'Screener Input'!K60 -> 451.89
A53: Debtors | C53: ='Screener Input'!B67 -> 78.25 | D53: ='Screener Input'!C67 -> 72.34 | E53: ='Screener Input'!D67 -> 50.1 | F53: ='Screener Input'!E67 -> 70.42 | G53: ='Screener Input'!F67 -> 87.17 | H53: ='Screener Input'!G67 -> 106.75 | I53: ='Screener Input'!H67 -> 113.22 | J53: ='Screener Input'!I67 -> 128.14 | K53: ='Screener Input'!J67 -> 162.74 | L53: ='Screener Input'!K67 -> 182.03
A54: Inventory | C54: ='Screener Input'!B68 -> 72.77 | D54: ='Screener Input'!C68 -> 85.85 | E54: ='Screener Input'!D68 -> 89.39 | F54: ='Screener Input'!E68 -> 117.15 | G54: ='Screener Input'!F68 -> 155.51 | H54: ='Screener Input'!G68 -> 137.95 | I54: ='Screener Input'!H68 -> 173.53 | J54: ='Screener Input'!I68 -> 148.6 | K54: ='Screener Input'!J68 -> 182.76 | L54: ='Screener Input'!K68 -> 183.16
A55: Cash | C55: ='Screener Input'!B69 -> 9.24 | D55: ='Screener Input'!C69 -> 6.16 | E55: ='Screener Input'!D69 -> 40.99 | F55: ='Screener Input'!E69 -> 5.64 | G55: ='Screener Input'!F69 -> 9.35 | H55: ='Screener Input'!G69 -> 34.38 | I55: ='Screener Input'!H69 -> 26.63 | J55: ='Screener Input'!I69 -> 18.68 | K55: ='Screener Input'!J69 -> 16.79 | L55: ='Screener Input'!K69 -> 44.21
A56: Net Other Assets
A57: Invested Capital | C57: =C42+C45 -> 414.52 | D57: 437.44 | E57: 437.63 | F57: 507.62 | G57: 580.42 | H57: 644.86 | I57: 650.76 | J57: 720.11 | K57: 770.31 | L57: 1050.89
A58: Capital Employed | C58: =C49-C48 -> 414.52 | D58: 437.44 | E58: 437.63 | F58: 507.62 | G58: 580.42 | H58: 644.86 | I58: 650.76 | J58: 720.11 | K58: 770.31 | L58: 1050.89
A59: Total Liability | C59: ='Screener Input'!B59+'Screener Input'!B60 -> 285.92 | D59: ='Screener Input'!C59+'Screener Input'!C60 -> 291.02 | E59: ='Screener Input'!D59+'Screener Input'!D60 -> 292.71 | F59: ='Screener Input'!E59+'Screener Input'!E60 -> 331.03 | G59: ='Screener Input'!F59+'Screener Input'!F60 -> 388.14 | H59: ='Screener Input'!G59+'Screener Input'!G60 -> 372.24 | I59: ='Screener Input'!H59+'Screener Input'!H60 -> 340.14 | J59: ='Screener Input'!I59+'Screener Input'!I60 -> 291.47 | K59: ='Screener Input'!J59+'Screener Input'!J60 -> 219.87 | L59: ='Screener Input'!K59+'Screener Input'!K60 -> 393.66
A60: Total Assets | C60: ='Screener Input'!B66 -> 461.52 | D60: ='Screener Input'!C66 -> 491.88 | E60: ='Screener Input'!D66 -> 509.87 | F60: ='Screener Input'!E66 -> 570.77 | G60: ='Screener Input'!F66 -> 666.52 | H60: ='Screener Input'!G66 -> 725.03 | I60: ='Screener Input'!H66 -> 761.72 | J60: ='Screener Input'!I66 -> 801.27 | K60: ='Screener Input'!J66 -> 848.18 | L60: ='Screener Input'!K66 -> 1133.6
A62: Operating Cash Flow | C62: ='Screener Input'!B82 -> 43.21 | D62: ='Screener Input'!C82 -> 39.69 | E62: ='Screener Input'!D82 -> 19.63 | F62: ='Screener Input'!E82 -> 11.29 | G62: ='Screener Input'!F82 -> 25.1 | H62: ='Screener Input'!G82 -> 124.79 | I62: ='Screener Input'!H82 -> 104.71 | J62: ='Screener Input'!I82 -> 160.98 | K62: ='Screener Input'!J82 -> 101.78 | L62: ='Screener Input'!K82 -> 145.15
A63: Free Cash Flow | D63: =D62-D23 -> -5.13 | E63: -23.67 | F63: -44.57 | G63: 13.13 | H63: 30.08 | I63: 84.5 | J63: 108.69 | K63: 92.4 | L63: -93.02
A64: Cash from Investing Activity | C64: ='Screener Input'!B83 -> -23.23 | D64: ='Screener Input'!C83 -> -32.49 | E64: ='Screener Input'!D83 -> -33.2 | F64: ='Screener Input'!E83 -> -54.46 | G64: ='Screener Input'!F83 -> -37.53 | H64: ='Screener Input'!G83 -> -58.25 | I64: ='Screener Input'!H83 -> -19.17 | J64: ='Screener Input'!I83 -> -86.97 | K64: ='Screener Input'!J83 -> -19.6 | L64: ='Screener Input'!K83 -> -246.71
A65: Cash from Financing Activity | C65: ='Screener Input'!B84 -> -19.86 | D65: ='Screener Input'!C84 -> -10.28 | E65: ='Screener Input'!D84 -> 51.55 | F65: ='Screener Input'!E84 -> 7.82 | G65: ='Screener Input'!F84 -> 16.13 | H65: ='Screener Input'!G84 -> -41.51 | I65: ='Screener Input'!H84 -> -93.29 | J65: ='Screener Input'!I84 -> -81.96 | K65: ='Screener Input'!J84 -> -84.32 | L65: ='Screener Input'!K84 -> 128.93
A66: Tax Rate | C66: =C34/C33 -> 0.2159370389 | D66: 0.2247807018 | E66: 0.3273143438 | F66: 0.3309950157 | G66: 0.3577037639 | H66: 0.3531243721 | I66: 0.2977133463 | J66: 0.2676740421 | K66: 0.2877031391 | L66: 0.266078684
A67: NOPAT | C67: =C31*(1-C66) -> 31.02537137 | D67: 40.8695614 | E67: 37.17260936 | F67: 46.17472402 | G67: 60.70984024 | H67: 75.42569821 | I67: 103.5381214 | J67: 130.0537669 | K67: 142.5163559 | L67: 153.8666039
A69: MktCap+Dividend | D69: =D37+C36 -> 149.5991217 | E69: 165.4458048 | F69: 113.9777635 | G69: 188.6255432 | H69: 741.2441821 | I69: 2607.952507 | J69: 2625.241801 | K69: 4615.336692 | L69: 3910.263707
A70: Retained Profit | C70: =C35-C36 -> 14.61 | D70: 26.28 | E70: 23.79 | F70: 29.59 | G70: 40.79 | H70: 48.42 | I70: 74.02 | J70: 88.87 | K70: 101.3 | L70: 114.86
A72: Price | C72: ='Screener Input'!B90 -> 8.307778 | D72: ='Screener Input'!C90 -> 22.291429 | E72: ='Screener Input'!D90 -> 24.573158 | F72: ='Screener Input'!E90 -> 16.736 | G72: ='Screener Input'!F90 -> 27.359 | H72: ='Screener Input'!G90 -> 55.221053 | I72: ='Screener Input'!H90 -> 194.845 | J72: ='Screener Input'!I90 -> 195.844737 | K72: ='Screener Input'!J90 -> 344.444737 | L72: ='Screener Input'!K90 -> 291.442857
A73: BVPS | C73: =SUM('Screener Input'!B57:B58)/'Screener Input'!B93 -> 26.40047292 | D73: =SUM('Screener Input'!C57:C58)/'Screener Input'!C93 -> 30.19817193 | E73: =SUM('Screener Input'!D57:D58)/'Screener Input'!D93 -> 32.64878531 | F73: =SUM('Screener Input'!E57:E58)/'Screener Input'!E93 -> 36.04356138 | G73: =SUM('Screener Input'!F57:F58)/'Screener Input'!F93 -> 41.85286818 | H73: =SUM('Screener Input'!G57:G58)/'Screener Input'!G93 -> 26.5199967 | I73: =SUM('Screener Input'!H57:H58)/'Screener Input'!H93 -> 31.69109161 | J73: =SUM('Screener Input'!I57:I58)/'Screener Input'!I93 -> 38.32278216 | K73: =SUM('Screener Input'!J57:J58)/'Screener Input'!J93 -> 47.23143833 | L73: =SUM('Screener Input'!K57:K58)/'Screener Input'!K93 -> 55.62290984
A74: EPS | C74: =('Screener Input'!B30/'Screener Input'!B93) -> 2.554350996 | D74: =('Screener Input'!C30/'Screener Input'!C93) -> 4.209642607 | E74: =('Screener Input'!D30/'Screener Input'!D93) -> 3.97660882 | F74: =('Screener Input'!E30/'Screener Input'!E93) -> 5.448480289 | G74: =('Screener Input'!F30/'Screener Input'!F93) -> 7.130833888 | H74: =('Screener Input'!G30/'Screener Input'!G93) -> 4.842592442 | I74: =('Screener Input'!H30/'Screener Input'!H93) -> 7.064682361 | J74: =('Screener Input'!I30/'Screener Input'!I93) -> 9.180027772 | K74: =('Screener Input'!J30/'Screener Input'!J93) -> 10.11516981 | L74: =('Screener Input'!K30/'Screener Input'!K93) -> 11.13525642 | M74: =SUM('Screener Input'!H49:K49)/'Screener Input'!K93 -> 13.10251262 | N74: =SUM('Screener Input'!D49:G49)/'Screener Input'!K93 -> 10.65114752
A75: DPS | C75: ='Screener Input'!B31/'Screener Input'!B93 -> 0.1999580238 | D75: ='Screener Input'!C31/'Screener Input'!C93 -> 0.3006887577 | E75: ='Screener Input'!D31/'Screener Input'!D93 -> 0.3999160477 | F75: ='Screener Input'!E31/'Screener Input'!E93 -> 0.9997901192 | G75: ='Screener Input'!F31/'Screener Input'!F93 -> 0.9997901192 | H75: ='Screener Input'!G31/'Screener Input'!G93 -> 1.200499865 | I75: ='Screener Input'!H31/'Screener Input'!H93 -> 1.500436901 | J75: ='Screener Input'!I31/'Screener Input'!I93 -> 2.50022702 | K75: ='Screener Input'!J31/'Screener Input'!J93 -> 2.50022702 | L75: ='Screener Input'!K31/'Screener Input'!K93 -> 2.50022702
A76: P/E | C76: ='Screener Input'!B90/('Screener Input'!B30/'Screener Input'!B93) -> 3.25240267 | D76: ='Screener Input'!C90/('Screener Input'!C30/'Screener Input'!C93) -> 5.295325774 | E76: ='Screener Input'!D90/('Screener Input'!D30/'Screener Input'!D93) -> 6.179425513 | F76: ='Screener Input'!E90/('Screener Input'!E30/'Screener Input'!E93) -> 3.071682215 | G76: ='Screener Input'!F90/('Screener Input'!F30/'Screener Input'!F93) -> 3.836718178 | H76: ='Screener Input'!G90/('Screener Input'!G30/'Screener Input'!G93) -> 11.40320059 | I76: ='Screener Input'!H90/('Screener Input'!H30/'Screener Input'!H93) -> 27.58015011 | J76: ='Screener Input'!I90/('Screener Input'!I30/'Screener Input'!I93) -> 21.33378481 | K76: ='Screener Input'!J90/('Screener Input'!J30/'Screener Input'!J93) -> 34.05229408 | L76: ='Screener Input'!K90/('Screener Input'!K30/'Screener Input'!K93) -> 26.17298121
A77: PEG | D77: =D76/(((('Screener Input'!C30/'Screener Input'!C93) - ('Screener Input'!B30/'Screener Input'!B93))/('Screener Input'!B30/'Screener Input'!B93))*100) -> 0.08171442771 | E77: =E76/(((('Screener Input'!D30/'Screener Input'!D93) - ('Screener Input'!C30/'Screener Input'!C93))/('Screener Input'!C30/'Screener Input'!C93))*100) -> -1.116283319 | F77: =F76/(((('Screener Input'!E30/'Screener Input'!E93) - ('Screener Input'!D30/'Screener Input'!D93))/('Screener Input'!D30/'Screener Input'!D93))*100) -> 0.0829887585 | G77: =G76/(((('Screener Input'!F30/'Screener Input'!F93) - ('Screener Input'!E30/'Screener Input'!E93))/('Screener Input'!E30/'Screener Input'!E93))*100) -> 0.1242561812 | H77: =H76/(((('Screener Input'!G30/'Screener Input'!G93) - ('Screener Input'!F30/'Screener Input'!F93))/('Screener Input'!F30/'Screener Input'!F93))*100) -> -0.3553572957 | I77: =I76/(((('Screener Input'!H30/'Screener Input'!H93) - ('Screener Input'!G30/'Screener Input'!G93))/('Screener Input'!G30/'Screener Input'!G93))*100) -> 0.6010532037 | J77: =J76/(((('Screener Input'!I30/'Screener Input'!I93) - ('Screener Input'!H30/'Screener Input'!H93))/('Screener Input'!H30/'Screener Input'!H93))*100) -> 0.7124907946 | K77: =K76/(((('Screener Input'!J30/'Screener Input'!J93) - ('Screener Input'!I30/'Screener Input'!I93))/('Screener Input'!I30/'Screener Input'!I93))*100) -> 3.342818451 | L77: =L76/(((('Screener Input'!K30/'Screener Input'!K93) - ('Screener Input'!J30/'Screener Input'!J93))/('Screener Input'!J30/'Screener Input'!J93))*100) -> 2.595310502
A78: Price/Book | C78: =C37/C42 -> 0.3146829235 | D78: 0.7381714711 | E78: 0.7526515234 | F78: 0.4643270354 | G78: 0.6536947452 | H78: 2.082242076 | I78: 6.148257762 | J78: 5.110399766 | K78: 7.292700565 | L78: 5.239619032
A79: Price/operating CashFlow | C79: =C37/C62 -> 1.278831783 | D79: 3.735679559 | E79: 8.326327296 | F79: 9.859855045 | G79: 7.25002164 | H79: 5.886643017 | I79: 24.75391565 | J79: 16.18388496 | K79: 45.01942122 | L79: 26.71032523
A80: Price/Free Cashflow | D80: =D37/D63 -> -28.9023629 | E80: -6.905188206 | F80: -2.497593975 | G80: 13.85952347 | H80: 24.42134914 | I80: 30.6743492 | J80: 23.969839 | K80: 49.58957459 | L80: -41.67924862
A81: Price/Sales | C81: =C37/C26 -> 0.1180102965 | D81: 0.3388698672 | E81: 0.4491873604 | F81: 0.2216513947 | G81: 0.2796440101 | H81: 1.024781583 | I81: 2.943528064 | J81: 2.794976882 | K81: 4.692394896 | L81: 3.410843698
A82: EV/EBITDA | C82: =(C37-C45+C8)/C29 -> -3.234223598 | D82: -1.225766612 | E82: -0.2151663335 | F82: -1.693472134 | G82: -0.8989481718 | H82: 3.273192739 | I82: 13.71266862 | J82: 11.71846289 | K82: 19.10113012 | L82: 14.81194595
A83: Dividend Yield | C83: =C36/C37 -> 0.02406877312 | D83: 0.01348898528 | E83: 0.01627450764 | F83: 0.05973889336 | G83: 0.03654337217 | H83: 0.02173989447 | I83: 0.007700669254 | J83: 0.01276637329 | K83: 0.007258717441 | L83: 0.008578789838
A84: Enterprise Value | C84: =C37+C8-C45 -> -174.4216786 | D84: -82.15087832 | E84: -16.03419517 | F84: -150.9222365 | G84: -110.7144568 | H84: 476.9041821 | I84: 2389.432507 | J84: 2413.651801 | K84: 4456.866692 | L84: 3610.263707
L85: Z-Weights
A86: Working Capital/Total Assets | C86: =C52/C60 -> 0.3106257584 | D86: 0.2968406929 | E86: 0.236962363 | F86: 0.2716505773 | G86: 0.3668607094 | H86: 0.3356412838 | I86: 0.3358977052 | J86: 0.3760280555 | K86: 0.4425475724 | L86: 1.2
A87: Retained Profits/Total Assets | C87: =C70/C60 -> 0.03165626625 | D87: 0.05342766528 | E87: 0.04665895228 | F87: 0.05184224819 | G87: 0.06119846366 | H87: 0.06678344344 | I87: 0.09717481489 | J87: 0.1109114281 | K87: 0.119432196 | L87: 1.4
A88: EBIT/Total Assets | C88: =C31/C60 -> 0.08573842954 | D88: 0.1071806132 | E88: 0.1083805676 | F88: 0.1209243653 | G88: 0.1418111985 | H88: 0.1608209315 | I88: 0.1935488106 | J88: 0.2216356534 | K88: 0.2358933245 | L88: 3.3
A89: Market Cap/Total Liabilities | C89: =C37/C59 -> 0.193264974 | D89: 0.5094808662 | E89: 0.5583881823 | F89: 0.3362769642 | G89: 0.4688399628 | H89: 1.973442355 | I89: 7.620340175 | J89: 8.938421795 | K89: 20.83993583 | L89: 9.848609731
A90: Sales/Total Assets | C90: =C26/C60 -> 1.01458225 | D90: 0.8895259006 | E90: 0.7136524997 | F90: 0.8798990837 | G90: 0.9763247915 | H90: 0.9886901232 | I90: 1.156028462 | J90: 1.163315736 | K90: 1.151276852 | L90: 1
A92: RoE | C92: =SUM('Screener Output.v0'!C35:C35)/SUM('Screener Output.v0'!C40:C41) -> 0.09077448747 | D92: =SUM('Screener Output.v0'!D35:D35)/SUM('Screener Output.v0'!D40:D41) -> 0.1407945833 | E92: =SUM('Screener Output.v0'!E35:E35)/SUM('Screener Output.v0'!E40:E41) -> 0.1217995948 | F92: =SUM('Screener Output.v0'!F35:F35)/SUM('Screener Output.v0'!F40:F41) -> 0.1511637607 | G92: =SUM('Screener Output.v0'!G35:G35)/SUM('Screener Output.v0'!G40:G41) -> 0.1704145413 | H92: =SUM('Screener Output.v0'!H35:H35)/SUM('Screener Output.v0'!H40:H41) -> 0.1825165112 | I92: =SUM('Screener Output.v0'!I35:I35)/SUM('Screener Output.v0'!I40:I41) -> 0.2229232886 | J92: =SUM('Screener Output.v0'!J35:J35)/SUM('Screener Output.v0'!J40:J41) -> 0.2395645351 | K92: =SUM('Screener Output.v0'!K35:K35)/SUM('Screener Output.v0'!K40:K41) -> 0.2141617991 | L92: =SUM('Screener Output.v0'!L35:L35)/SUM('Screener Output.v0'!L40:L41) -> 0.2001783928
A93: RoCE | C93: =C31/(C60-C48) -> 0.09545980894 | D93: =D31/(D60-D48) -> 0.1205193855 | E93: 0.1262710509 | F93: 0.13596785 | G93: 0.1628475931 | H93: 0.1808144403 | I93: 0.2265504948 | J93: 0.2466151005 | K93: 0.2597395854 | L93: 0.1994975687 | M93: =M31/(L60-L48) -> 0.2321841487
A94: Sales Type | C94: =C4 -> 2009-03-01 | D94: =D4 -> 2010-03-01 | E94: 2011-03-01 | F94: 2012-03-01 | G94: 2013-03-01 | H94: 2014-03-01 | I94: 2015-03-01 | J94: 2016-03-01 | K94: 2017-03-01 | L94: 2018-03-01
A95: Cash Sales | C95: =(C26-C7)/C26 -> 0.8328884143 | D95: =(D26-D7)/D26 -> 0.8346665448 | E95: 0.8623134636 | F95: 0.8597825654 | G95: 0.8660448105 | H95: 0.8510804514 | I95: 0.8714241911 | J95: 0.8625299046 | K95: 0.8333418673 | L95: 0.8398567746
A96: Credit Sales | C96: =1-C95 -> 0.1671115857 | D96: =1-D95 -> 0.1653334552 | E96: 0.1376865364 | F96: 0.1402174346 | G96: 0.1339551895 | H96: 0.1489195486 | I96: 0.1285758089 | J96: 0.1374700954 | K96: 0.1666581327 | L96: 0.1601432254
A99: Liability Dist. | C99: =C4 -> 2009-03-01 | D99: 2010-03-01 | E99: 2011-03-01 | F99: 2012-03-01 | G99: 2013-03-01 | H99: 2014-03-01 | I99: 2015-03-01 | J99: 2016-03-01 | K99: 2017-03-01 | L99: 2018-03-01
A100: Equity | C100: =C42/(C10+C42+C45) -> 0.3804818859 | D100: 0.4083516305 | E100: 0.4259124875 | F100: 0.4200290835 | G100: 0.4176618856 | H100: 0.4865867619 | I100: 0.5534579636 | J100: 0.636239969 | K100: 0.7407743639 | L100: 0.6527346507
A101: Float | C101: =C10/(C10+C42+C45) -> 0.1018374068 | D101: 0.110677401 | E101: 0.1416831741 | F101: 0.1106400126 | G101: 0.1291784193 | H101: 0.1105747348 | I101: 0.1456703251 | J101: 0.1012892034 | K101: 0.09180834257 | L101: 0.07296224418
A102: Debt | C102: =C45/(C10+C42+C45) -> 0.5176807072 | D102: 0.4809709685 | E102: 0.4324043384 | F102: 0.4693309039 | G102: 0.4531596951 | H102: 0.4028385032 | I102: 0.3008717114 | J102: 0.2624708276 | K102: 0.1674172935 | L102: 0.2743031052
D105: =D4 -> 2010-03-01 | E105: 2011-03-01 | F105: 2012-03-01 | G105: 2013-03-01 | H105: 2014-03-01 | I105: 2015-03-01 | J105: 2016-03-01 | K105: 2017-03-01 | L105: 2018-03-01
A106: ∆ WC | D106: =D11-C11 -> 2.65 | E106: -25.19 | F106: 34.23 | G106: 89.47 | H106: -1.17 | I106: 12.51 | J106: 45.44 | K106: 74.06 | L106: 76.53
A107: NP | D107: =C35 -> 15.94 | E107: 28.28 | F107: 26.45 | G107: 36.24 | H107: 47.44 | I107: 64.39 | J107: 93.98 | K107: 122.13 | L107: 134.56
C111: =C4 -> 2009-03-01 | D111: 2010-03-01 | E111: 2011-03-01 | F111: 2012-03-01 | G111: 2013-03-01 | H111: 2014-03-01 | I111: 2015-03-01 | J111: 2016-03-01 | K111: 2017-03-01 | L111: 2018-03-01
A112: Receivable Days | C112: =(C7/C26)*365 -> 60.99572878 | D112: 60.34671116 | E112: 50.25558579 | F112: 51.17936363 | G112: 48.89364416 | H112: 54.35563523 | I112: 46.93017023 | J112: 50.17658481 | K112: 60.83021844 | L112: 58.45227727
A113: Inventory Turnover ratio | C113: =C27/C54 -> 4.777793047 | D113: =D27/AVERAGE(C54:D54) -> 3.59374606 | E113: 2.54245606 | F113: 2.899486782 | G113: 2.909704394 | H113: 2.862264022 | I113: 3.56575061 | J113: 3.391736256 | K113: 3.283800097 | L113: 3.93260822
A114: Inventory/Sales | C114: =C6/C26 -> 0.1554084357 | D114: =D6/D26 -> 0.1962106322 | E114: 0.2456646605 | F114: 0.2332643065 | G114: 0.238974091 | H114: 0.1924445126 | I114: 0.1970655371 | J114: 0.1594198234 | K114: 0.1871601348 | L114: 0.1611373574
C116: =C4 -> 2009-03-01 | D116: 2010-03-01 | E116: 2011-03-01 | F116: 2012-03-01 | G116: 2013-03-01 | H116: 2014-03-01 | I116: 2015-03-01 | J116: 2016-03-01 | K116: 2017-03-01 | L116: 2018-03-01 | M116: TTM
A117: Debt/PAT | C117: =C45/C35 -> 14.98870765 | D117: 8.36562942 | E117: 8.335349716 | F117: 7.39183223 | G117: 6.366779089 | H117: 4.535952788 | I117: 2.438603958 | J117: 1.722017522 | K117: 1.05529132 | L117: 2.099311369 | M117: =L45/M35 -> 1.783993115
A118: CFO/PAT | C118: =C62/C35 -> 2.710790464 | D118: 1.403465347 | E118: 0.7421550095 | F118: 0.3115342163 | G118: 0.5290893761 | H118: 1.938033856 | I118: 1.114173228 | J118: 1.31810366 | K118: 0.756391201 | L118: 0.9799486903 | M118: =L62/M35 -> 0.8327596099
A119: PAT/WC | C119: =C35/C11 -> 0.1111886161 | D119: 0.193685364 | E119: 0.2189207085 | F119: 0.2337310545 | G119: 0.1940127597 | H119: 0.2645983152 | I119: 0.3673102478 | J119: 0.4053435115 | K119: 0.3584825234 | L119: 0.3277788842 | M119: =M35/L11 -> 0.3857133373
A120: Sales/NFAT | C120: =C26/C50 -> 2.033570746 | D120: =D26/AVERAGE(C50:D50) -> 1.952954829 | E120: 1.4817062 | F120: 1.892491757 | G120: 2.199114596 | H120: 2.061248257 | I120: 2.511966909 | J120: 2.461784281 | K120: 2.409331475 | L120: 2.973979932 | M120: =M26/AVERAGE(K50:L50) -> 3.087557724
A121: C Liability/C Asset | C121: =C10/C9 -> 0.2469006094 | D121: 0.2715889249 | E121: 0.3741841914 | F121: 0.2894133822 | G121: 0.2604198173 | H121: 0.2478053907 | I121: 0.3024916853 | J121: 0.2122051979 | K121: 0.1718112217 | L121: 0.1547138047
A125: Profit Margin | C125: =C4 -> 2009-03-01 | D125: 2010-03-01 | E125: 2011-03-01 | F125: 2012-03-01 | G125: 2013-03-01 | H125: 2014-03-01 | I125: 2015-03-01 | J125: 2016-03-01 | K125: 2017-03-01 | L125: 2018-03-01 | M125: TTM
A126: OP Margin | C126: =C29/C26 -> 0.1151735184 | D126: 0.1531745669 | E126: 0.204798417 | F126: 0.1774521126 | G126: 0.1892614562 | H126: 0.2032560021 | I126: 0.1978831893 | J126: 0.2209670325 | K126: 0.2389476595 | L126: 0.2144333888 | M126: 0.2367042912
A127: NP Margin | C127: =C35/C25 -> 0.03391128603 | D127: 0.06382738619 | E127: 0.07078817075 | F127: 0.07187196319 | G127: 0.07269161227 | H127: 0.08950141084 | I127: 0.1063615478 | J127: 0.1308512348 | K127: 0.1376263143 | L127: 0.1297579522 | M127: 0.1472377091
A129: Gross Profit | C129: =C125 -> 2009-03-01 | D129: =D125 -> 2010-03-01 | E129: 2011-03-01 | F129: 2012-03-01 | G129: 2013-03-01 | H129: 2014-03-01 | I129: 2015-03-01 | J129: 2016-03-01 | K129: 2017-03-01 | L129: 2018-03-01 | M129: TTM
A130: Depreciation | C130: =C30/C29 -> 0.2662710922 | D130: =D30/D29 -> 0.2133691435 | E130: 0.2584541063 | F130: 0.2255385996 | G130: 0.2325430335 | H130: 0.1997254633 | I130: 0.1539167862 | J130: 0.1377870564 | K130: 0.1425020357 | L130: 0.1398621482 | M130: =M30/M29 -> 0.1264812229
A131: Interest | C131: =C32/C29 -> 0.3567587614 | D131: =D32/D29 -> 0.2423157266 | E131: 0.2139023081 | F131: 0.1666292639 | G131: 0.1677492692 | H131: 0.1170899108 | I131: 0.0781061693 | J131: 0.05253192212 | K131: 0.04787211246 | L131: 0.03212439485 | M131: =M32/M29 -> 0.03451115168
A132: Taxes | C132: =C34/C29 -> 0.08140181717 | D132: =D34/D29 -> 0.1223515369 | E132: 0.172705314 | F132: 0.2011894075 | G132: 0.2145177006 | H132: 0.2412491421 | I132: 0.2286370158 | J132: 0.2167305918 | K132: 0.232931899 | L132: 0.2203167309 | M132: =M34/M29 -> 0.2149070991
A133: Net Profit | C133: =C35/C29 -> 0.2955683293 | D133: =D35/D29 -> 0.421963593 | E133: 0.3549382716 | F133: 0.4066427289 | G133: 0.3851899968 | H133: 0.4419354839 | I133: 0.5393400287 | J133: 0.5929504297 | K133: 0.5766939528 | L133: 0.607696726 | M133: =M35/M29 -> 0.6239931264
A134: EBITDA | C134: =SUM(C130:C133) -> 1 | D134: =SUM(D130:D133) -> 1 | E134: 1 | F134: 1 | G134: 1 | H134: 1 | I134: 1 | J134: 1 | K134: 1 | L134: 1 | M134: 0.9998926002
A137: SSGR | C137: =C4 -> 2009-03-01 | D137: 2010-03-01 | E137: 2011-03-01 | F137: 2012-03-01 | G137: 2013-03-01 | H137: 2014-03-01 | I137: 2015-03-01 | J137: 2016-03-01 | K137: 2017-03-01 | L137: 2018-03-01 | M137: TTM
A138: Net fixed asset turnover (Sales/average net fixed assets over the year) | C138: =C26/C50 -> 2.033570746 | D138: =D26/AVERAGE(C50:D50) -> 1.952954829 | E138: 1.4817062 | F138: 1.892491757 | G138: 2.199114596 | H138: 2.061248257 | I138: 2.511966909 | J138: 2.461784281 | K138: 2.409331475 | L138: 2.973979932 | M138: =M26/AVERAGE(K50:L50) -> 3.087557724
A139: Net profit margin as % of sales | C139: =C35/C26 -> 0.03404164442 | D139: 0.0646340906 | E139: 0.07269079616 | F139: 0.07215961133 | G139: 0.07290161969 | H139: 0.08982603965 | I139: 0.106726325 | J139: 0.1310224969 | K139: 0.1377996702 | L139: 0.1303104683
A140: Dividend paid as % of net profit after tax | C140: =C36/C35 -> 0.0834378921 | D140: 0.07072135785 | E140: 0.1005671078 | F140: 0.1834988962 | G140: 0.1401770658 | H140: 0.2480198789 | I140: 0.212385614 | J140: 0.2723327602 | K140: 0.247175981 | L140: 0.2245476641
A141: Depreciation rate as a % of net fixed assets | C141: =C30/C50 -> 0.06236428385 | D141: 0.06565053714 | E141: 0.07046427395 | F141: 0.07808251107 | G141: 0.08564593301 | H141: 0.08058040041 | I141: 0.07888931376 | J141: 0.0680069972 | K141: 0.08454536208 | L141: 0.0918546062
A142: SSGR | E142: =AVERAGE(C138:E138)*AVERAGE(C139:E139)*(1-AVERAGE(C140:E140))-AVERAGE(C141:E141) -> 0.02911877644 | F142: =AVERAGE(D138:F138)*AVERAGE(D139:F139)*(1-AVERAGE(D140:F140))-AVERAGE(D141:F141) -> 0.03793203052 | G142: =AVERAGE(E138:G138)*AVERAGE(E139:G139)*(1-AVERAGE(E140:G140))-AVERAGE(E141:G141) -> 0.0377112749 | H142: 0.04854339568 | I142: 0.08046263238 | J142: 0.117688492 | K142: 0.1557708918 | L142: =AVERAGE(J138:L138)*AVERAGE(J139:L139)*(1-AVERAGE(J140:L140))-AVERAGE(J141:L141) -> 0.1801564429
A146: P/L - Quaterly | C146: ='Screener Input'!B41 -> 2016-06-30 | D146: ='Screener Input'!C41 -> 2016-09-30 | E146: ='Screener Input'!D41 -> 2016-12-31 | F146: ='Screener Input'!E41 -> 2017-03-31 | G146: ='Screener Input'!F41 -> 2017-06-30 | H146: ='Screener Input'!G41 -> 2017-09-30 | I146: ='Screener Input'!H41 -> 2017-12-31 | J146: ='Screener Input'!I41 -> 2018-03-31 | K146: ='Screener Input'!J41 -> 2018-06-30 | L146: ='Screener Input'!K41 -> 2018-09-30
A147: Other Income | C147: ='Screener Input'!B44 -> 0.41 | D147: ='Screener Input'!C44 -> 0.36 | E147: ='Screener Input'!D44 -> 0.19 | F147: ='Screener Input'!E44 -> 0.26 | G147: ='Screener Input'!F44 -> 2.55 | H147: ='Screener Input'!G44 -> 0.26 | I147: ='Screener Input'!H44 -> 0.41 | J147: ='Screener Input'!I44 -> 1.63 | K147: ='Screener Input'!J44 -> 0.33 | L147: ='Screener Input'!K44 -> 1.35
A148: Net Profit | C148: ='Screener Input'!B49 -> 40.3 | D148: ='Screener Input'!C49 -> 13.04 | E148: ='Screener Input'!D49 -> 45.59 | F148: ='Screener Input'!E49 -> 35.63 | G148: ='Screener Input'!F49 -> 27.04 | H148: ='Screener Input'!G49 -> 33.43 | I148: ='Screener Input'!H49 -> 40.42 | J148: ='Screener Input'!I49 -> 47.24 | K148: ='Screener Input'!J49 -> 39.46 | L148: ='Screener Input'!K49 -> 47.18
A149: Oth Inc % Net Profit | C149: =C147/C148 -> 0.01017369727 | D149: =D147/D148 -> 0.02760736196 | E149: 0.00416758061 | F149: 0.007297221443 | G149: 0.09430473373 | H149: 0.007777445408 | I149: 0.01014349332 | J149: 0.03450465707 | K149: 0.008362899138 | L149: 0.02861381942
A155: Assets | C155: =C4 -> 2009-03-01 | D155: 2010-03-01 | E155: 2011-03-01 | F155: 2012-03-01 | G155: 2013-03-01 | H155: 2014-03-01 | I155: 2015-03-01 | J155: 2016-03-01 | K155: 2017-03-01 | L155: 2018-03-01
A156: Tangible assets (Non-current) | C156: ='Screener Input'!B62 -> 230.26 | D156: ='Screener Input'!C62 -> 217.82 | E156: ='Screener Input'!D62 -> 273.33 | F156: ='Screener Input'!E62 -> 257.42 | G156: ='Screener Input'!F62 -> 334.4 | H156: ='Screener Input'!G62 -> 361.13 | I156: ='Screener Input'!H62 -> 339.97 | J156: ='Screener Input'!I62 -> 417.31 | K156: ='Screener Input'!J62 -> 393.28 | L156: ='Screener Input'!K62 -> 371.13
A157: Tangible assets (Non-current) | C157: ='Screener Input'!B62/'Screener Input'!B66 -> 0.4989166233 | D157: ='Screener Input'!C62/'Screener Input'!C66 -> 0.4428315849 | E157: ='Screener Input'!D62/'Screener Input'!D66 -> 0.5360778238 | F157: ='Screener Input'!E62/'Screener Input'!E66 -> 0.451004783 | G157: ='Screener Input'!F62/'Screener Input'!F66 -> 0.5017103763 | H157: ='Screener Input'!G62/'Screener Input'!G66 -> 0.4980897342 | I157: ='Screener Input'!H62/'Screener Input'!H66 -> 0.4463188573 | J157: ='Screener Input'!I62/'Screener Input'!I66 -> 0.520810713 | K157: ='Screener Input'!J62/'Screener Input'!J66 -> 0.4636751633 | L157: ='Screener Input'!K62/'Screener Input'!K66 -> 0.327390614
A158: Investments (Current) | C158: ='Screener Input'!B64/'Screener Input'!B66 -> 0.02255590224 | D158: ='Screener Input'!C64/'Screener Input'!C66 -> 0.0003252825892 | E158: ='Screener Input'!D64/'Screener Input'!D66 -> 0.002941926373 | F158: ='Screener Input'!E64/'Screener Input'!E66 -> 0.002628028803 | G158: ='Screener Input'!F64/'Screener Input'!F66 -> 0.002250495109 | H158: ='Screener Input'!G64/'Screener Input'!G66 -> 0.002068879908 | I158: ='Screener Input'!H64/'Screener Input'!H66 -> 0.001969227538 | J158: ='Screener Input'!I64/'Screener Input'!I66 -> 0.001872028155 | K158: ='Screener Input'!J64/'Screener Input'!J66 -> 0.001780282487 | L158: ='Screener Input'!K64/'Screener Input'!K66 -> 0.001305575159
A159: Inventories (Current) | C159: ='Screener Input'!B68/'Screener Input'!B66 -> 0.1576746403 | D159: ='Screener Input'!C68/'Screener Input'!C66 -> 0.1745344393 | E159: ='Screener Input'!D68/'Screener Input'!D66 -> 0.175319199 | F159: ='Screener Input'!E68/'Screener Input'!E66 -> 0.2052490495 | G159: ='Screener Input'!F68/'Screener Input'!F66 -> 0.2333163296 | H159: ='Screener Input'!G68/'Screener Input'!G66 -> 0.1902679889 | I159: ='Screener Input'!H68/'Screener Input'!H66 -> 0.2278133697 | J159: ='Screener Input'!I68/'Screener Input'!I66 -> 0.1854555893 | K159: ='Screener Input'!J68/'Screener Input'!J66 -> 0.2154731307 | L159: ='Screener Input'!K68/'Screener Input'!K66 -> 0.1615737474
A160: Receivables (Current) | C160: ='Screener Input'!B67/'Screener Input'!B66 -> 0.1695484486 | D160: ='Screener Input'!C67/'Screener Input'!C66 -> 0.1470683907 | E160: ='Screener Input'!D67/'Screener Input'!D66 -> 0.09826034087 | F160: ='Screener Input'!E67/'Screener Input'!E66 -> 0.1233771922 | G160: ='Screener Input'!F67/'Screener Input'!F66 -> 0.1307837724 | H160: ='Screener Input'!G67/'Screener Input'!G66 -> 0.1472352868 | I160: ='Screener Input'!H67/'Screener Input'!H66 -> 0.1486372945 | J160: ='Screener Input'!I67/'Screener Input'!I66 -> 0.1599211252 | K160: ='Screener Input'!J67/'Screener Input'!J66 -> 0.1918696503 | L160: ='Screener Input'!K67/'Screener Input'!K66 -> 0.1605769231
A161: Cash (Current) | C161: ='Screener Input'!B69/'Screener Input'!B66 -> 0.02002080083 | D161: ='Screener Input'!C69/'Screener Input'!C66 -> 0.01252337969 | E161: ='Screener Input'!D69/'Screener Input'!D66 -> 0.08039304136 | F161: ='Screener Input'!E69/'Screener Input'!E66 -> 0.0098813883 | G161: ='Screener Input'!F69/'Screener Input'!F66 -> 0.01402808618 | H161: ='Screener Input'!G69/'Screener Input'!G66 -> 0.0474187275 | I161: ='Screener Input'!H69/'Screener Input'!H66 -> 0.03496035289 | J161: ='Screener Input'!I69/'Screener Input'!I66 -> 0.02331299063 | K161: ='Screener Input'!J69/'Screener Input'!J66 -> 0.01979532646 | L161: ='Screener Input'!K69/'Screener Input'!K66 -> 0.03899964714
A162: Rest | C162: =('Screener Input'!B66-'Screener Input'!B62-'Screener Input'!B64-'Screener Input'!B68-'Screener Input'!B67-'Screener Input'!B69)/'Screener Input'!B66 -> 0.1312835847 | D162: =('Screener Input'!C66-'Screener Input'!C62-'Screener Input'!C64-'Screener Input'!C68-'Screener Input'!C67-'Screener Input'!C69)/'Screener Input'!C66 -> 0.2227169228 | E162: =('Screener Input'!D66-'Screener Input'!D62-'Screener Input'!D64-'Screener Input'!D68-'Screener Input'!D67-'Screener Input'!D69)/'Screener Input'!D66 -> 0.1070076686 | F162: =('Screener Input'!E66-'Screener Input'!E62-'Screener Input'!E64-'Screener Input'!E68-'Screener Input'!E67-'Screener Input'!E69)/'Screener Input'!E66 -> 0.2078595581 | G162: =('Screener Input'!F66-'Screener Input'!F62-'Screener Input'!F64-'Screener Input'!F68-'Screener Input'!F67-'Screener Input'!F69)/'Screener Input'!F66 -> 0.1179109404 | H162: =('Screener Input'!G66-'Screener Input'!G62-'Screener Input'!G64-'Screener Input'!G68-'Screener Input'!G67-'Screener Input'!G69)/'Screener Input'!G66 -> 0.1149193826 | I162: =('Screener Input'!H66-'Screener Input'!H62-'Screener Input'!H64-'Screener Input'!H68-'Screener Input'!H67-'Screener Input'!H69)/'Screener Input'!H66 -> 0.140300898 | J162: =('Screener Input'!I66-'Screener Input'!I62-'Screener Input'!I64-'Screener Input'!I68-'Screener Input'!I67-'Screener Input'!I69)/'Screener Input'!I66 -> 0.1086275538 | K162: =('Screener Input'!J66-'Screener Input'!J62-'Screener Input'!J64-'Screener Input'!J68-'Screener Input'!J67-'Screener Input'!J69)/'Screener Input'!J66 -> 0.1074064467 | L162: =('Screener Input'!K66-'Screener Input'!K62-'Screener Input'!K64-'Screener Input'!K68-'Screener Input'!K67-'Screener Input'!K69)/'Screener Input'!K66 -> 0.3101534933
A164: Liabilities | C164: =C4 -> 2009-03-01 | D164: 2010-03-01 | E164: 2011-03-01 | F164: 2012-03-01 | G164: 2013-03-01 | H164: 2014-03-01 | I164: 2015-03-01 | J164: 2016-03-01 | K164: 2017-03-01 | L164: 2018-03-01
A165: Shareholder Funds | C165: =SUM('Screener Input'!B57:B58)/'Screener Input'!B61 -> 0.3804818859 | D165: =SUM('Screener Input'!C57:C58)/'Screener Input'!C61 -> 0.4083516305 | E165: =SUM('Screener Input'!D57:D58)/'Screener Input'!D61 -> 0.4259124875 | F165: =SUM('Screener Input'!E57:E58)/'Screener Input'!E61 -> 0.4200290835 | G165: =SUM('Screener Input'!F57:F58)/'Screener Input'!F61 -> 0.4176618856 | H165: =SUM('Screener Input'!G57:G58)/'Screener Input'!G61 -> 0.4865867619 | I165: =SUM('Screener Input'!H57:H58)/'Screener Input'!H61 -> 0.5534579636 | J165: =SUM('Screener Input'!I57:I58)/'Screener Input'!I61 -> 0.636239969 | K165: =SUM('Screener Input'!J57:J58)/'Screener Input'!J61 -> 0.7407743639 | L165: =SUM('Screener Input'!K57:K58)/'Screener Input'!K61 -> 0.6527346507
A166: Rest | C166: =1-C165 -> 0.6195181141 | D166: =1-D165 -> 0.5916483695 | E166: 0.5740875125 | F166: 0.5799709165 | G166: 0.5823381144 | H166: 0.5134132381 | I166: 0.4465420364 | J166: 0.363760031 | K166: 0.2592256361 | L166: 0.3472653493
A170: P/L - Annual | C170: =C4 -> 2009-03-01 | D170: 2010-03-01 | E170: 2011-03-01 | F170: 2012-03-01 | G170: 2013-03-01 | H170: 2014-03-01 | I170: 2015-03-01 | J170: 2016-03-01 | K170: 2017-03-01 | L170: 2018-03-01
A171: Raw Mat + Invt change | C171: =IF(('Screener Input'!B18-'Screener Input'!B19)/('Screener Input'!B$17+'Screener Input'!B$25)<0, 0, ('Screener Input'!B18-'Screener Input'!B19)/('Screener Input'!B$17+'Screener Input'!B$25)) -> 0.7233911286 | D171: =IF(('Screener Input'!C18-'Screener Input'!C19)/('Screener Input'!C$17+'Screener Input'!C$25)<0, 0, ('Screener Input'!C18-'Screener Input'!C19)/('Screener Input'!C$17+'Screener Input'!C$25)) -> 0.6745435259 | E171: =IF(('Screener Input'!D18-'Screener Input'!D19)/('Screener Input'!D$17+'Screener Input'!D$25)<0, 0, ('Screener Input'!D18-'Screener Input'!D19)/('Screener Input'!D$17+'Screener Input'!D$25)) -> 0.5602836879 | F171: =IF(('Screener Input'!E18-'Screener Input'!E19)/('Screener Input'!E$17+'Screener Input'!E$25)<0, 0, ('Screener Input'!E18-'Screener Input'!E19)/('Screener Input'!E$17+'Screener Input'!E$25)) -> 0.6013128929 | G171: =IF(('Screener Input'!F18-'Screener Input'!F19)/('Screener Input'!F$17+'Screener Input'!F$25)<0, 0, ('Screener Input'!F18-'Screener Input'!F19)/('Screener Input'!F$17+'Screener Input'!F$25)) -> 0.5892096473 | H171: =IF(('Screener Input'!G18-'Screener Input'!G19)/('Screener Input'!G$17+'Screener Input'!G$25)<0, 0, ('Screener Input'!G18-'Screener Input'!G19)/('Screener Input'!G$17+'Screener Input'!G$25)) -> 0.5908288506 | I171: =IF(('Screener Input'!H18-'Screener Input'!H19)/('Screener Input'!H$17+'Screener Input'!H$25)<0, 0, ('Screener Input'!H18-'Screener Input'!H19)/('Screener Input'!H$17+'Screener Input'!H$25)) -> 0.6156248939 | J171: =IF(('Screener Input'!I18-'Screener Input'!I19)/('Screener Input'!I$17+'Screener Input'!I$25)<0, 0, ('Screener Input'!I18-'Screener Input'!I19)/('Screener Input'!I$17+'Screener Input'!I$25)) -> 0.5857716826 | K171: =IF(('Screener Input'!J18-'Screener Input'!J19)/('Screener Input'!J$17+'Screener Input'!J$25)<0, 0, ('Screener Input'!J18-'Screener Input'!J19)/('Screener Input'!J$17+'Screener Input'!J$25)) -> 0.564496993 | L171: =IF(('Screener Input'!K18-'Screener Input'!K19)/('Screener Input'!K$17+'Screener Input'!K$25)<0, 0, ('Screener Input'!K18-'Screener Input'!K19)/('Screener Input'!K$17+'Screener Input'!K$25)) -> 0.6049618488
A172: Power and Fuel | C172: =IF(('Screener Input'!B20)/('Screener Input'!B$17+'Screener Input'!B$25)<0, 0, ('Screener Input'!B20)/('Screener Input'!B$17+'Screener Input'!B$25)) -> 0.02159344751 | D172: =IF(('Screener Input'!C20)/('Screener Input'!C$17+'Screener Input'!C$25)<0, 0, ('Screener Input'!C20)/('Screener Input'!C$17+'Screener Input'!C$25)) -> 0.03694675785 | E172: =IF(('Screener Input'!D20)/('Screener Input'!D$17+'Screener Input'!D$25)<0, 0, ('Screener Input'!D20)/('Screener Input'!D$17+'Screener Input'!D$25)) -> 0.0619831393 | F172: =IF(('Screener Input'!E20)/('Screener Input'!E$17+'Screener Input'!E$25)<0, 0, ('Screener Input'!E20)/('Screener Input'!E$17+'Screener Input'!E$25)) -> 0.05015568292 | G172: =IF(('Screener Input'!F20)/('Screener Input'!F$17+'Screener Input'!F$25)<0, 0, ('Screener Input'!F20)/('Screener Input'!F$17+'Screener Input'!F$25)) -> 0.062747081 | H172: =IF(('Screener Input'!G20)/('Screener Input'!G$17+'Screener Input'!G$25)<0, 0, ('Screener Input'!G20)/('Screener Input'!G$17+'Screener Input'!G$25)) -> 0.05329218965 | I172: =IF(('Screener Input'!H20)/('Screener Input'!H$17+'Screener Input'!H$25)<0, 0, ('Screener Input'!H20)/('Screener Input'!H$17+'Screener Input'!H$25)) -> 0.04709197705 | J172: =IF(('Screener Input'!I20)/('Screener Input'!I$17+'Screener Input'!I$25)<0, 0, ('Screener Input'!I20)/('Screener Input'!I$17+'Screener Input'!I$25)) -> 0.04481705684 | K172: =IF(('Screener Input'!J20)/('Screener Input'!J$17+'Screener Input'!J$25)<0, 0, ('Screener Input'!J20)/('Screener Input'!J$17+'Screener Input'!J$25)) -> 0.03653397701 | L172: =IF(('Screener Input'!K20)/('Screener Input'!K$17+'Screener Input'!K$25)<0, 0, ('Screener Input'!K20)/('Screener Input'!K$17+'Screener Input'!K$25)) -> 0.03789717129
A173: Other Mfr. Exp | C173: =IF(('Screener Input'!B21)/('Screener Input'!B$17+'Screener Input'!B$25)<0, 0, ('Screener Input'!B21)/('Screener Input'!B$17+'Screener Input'!B$25)) -> 0.07031166897 | D173: =IF(('Screener Input'!C21)/('Screener Input'!C$17+'Screener Input'!C$25)<0, 0, ('Screener Input'!C21)/('Screener Input'!C$17+'Screener Input'!C$25)) -> 0.06567810955 | E173: =IF(('Screener Input'!D21)/('Screener Input'!D$17+'Screener Input'!D$25)<0, 0, ('Screener Input'!D21)/('Screener Input'!D$17+'Screener Input'!D$25)) -> 0.104964539 | F173: =IF(('Screener Input'!E21)/('Screener Input'!E$17+'Screener Input'!E$25)<0, 0, ('Screener Input'!E21)/('Screener Input'!E$17+'Screener Input'!E$25)) -> 0.0779009579 | G173: =IF(('Screener Input'!F21)/('Screener Input'!F$17+'Screener Input'!F$25)<0, 0, ('Screener Input'!F21)/('Screener Input'!F$17+'Screener Input'!F$25)) -> 0.08016916429 | H173: =IF(('Screener Input'!G21)/('Screener Input'!G$17+'Screener Input'!G$25)<0, 0, ('Screener Input'!G21)/('Screener Input'!G$17+'Screener Input'!G$25)) -> 0.07544861905 | I173: =IF(('Screener Input'!H21)/('Screener Input'!H$17+'Screener Input'!H$25)<0, 0, ('Screener Input'!H21)/('Screener Input'!H$17+'Screener Input'!H$25)) -> 0.06031077762 | J173: =IF(('Screener Input'!I21)/('Screener Input'!I$17+'Screener Input'!I$25)<0, 0, ('Screener Input'!I21)/('Screener Input'!I$17+'Screener Input'!I$25)) -> 0.06695237585 | K173: =IF(('Screener Input'!J21)/('Screener Input'!J$17+'Screener Input'!J$25)<0, 0, ('Screener Input'!J21)/('Screener Input'!J$17+'Screener Input'!J$25)) -> 0.07132921491 | L173: =IF(('Screener Input'!K21)/('Screener Input'!K$17+'Screener Input'!K$25)<0, 0, ('Screener Input'!K21)/('Screener Input'!K$17+'Screener Input'!K$25)) -> 0.05406873352
A174: Employee Cost | C174: =IF(('Screener Input'!B22)/('Screener Input'!B$17+'Screener Input'!B$25)<0, 0, ('Screener Input'!B22)/('Screener Input'!B$17+'Screener Input'!B$25)) -> 0.01952983725 | D174: =IF(('Screener Input'!C22)/('Screener Input'!C$17+'Screener Input'!C$25)<0, 0, ('Screener Input'!C22)/('Screener Input'!C$17+'Screener Input'!C$25)) -> 0.0210124811 | E174: =IF(('Screener Input'!D22)/('Screener Input'!D$17+'Screener Input'!D$25)<0, 0, ('Screener Input'!D22)/('Screener Input'!D$17+'Screener Input'!D$25)) -> 0.02617422722 | F174: =IF(('Screener Input'!E22)/('Screener Input'!E$17+'Screener Input'!E$25)<0, 0, ('Screener Input'!E22)/('Screener Input'!E$17+'Screener Input'!E$25)) -> 0.02171628027 | G174: =IF(('Screener Input'!F22)/('Screener Input'!F$17+'Screener Input'!F$25)<0, 0, ('Screener Input'!F22)/('Screener Input'!F$17+'Screener Input'!F$25)) -> 0.02330605866 | H174: =IF(('Screener Input'!G22)/('Screener Input'!G$17+'Screener Input'!G$25)<0, 0, ('Screener Input'!G22)/('Screener Input'!G$17+'Screener Input'!G$25)) -> 0.02367151773 | I174: =IF(('Screener Input'!H22)/('Screener Input'!H$17+'Screener Input'!H$25)<0, 0, ('Screener Input'!H22)/('Screener Input'!H$17+'Screener Input'!H$25)) -> 0.02105048722 | J174: =IF(('Screener Input'!I22)/('Screener Input'!I$17+'Screener Input'!I$25)<0, 0, ('Screener Input'!I22)/('Screener Input'!I$17+'Screener Input'!I$25)) -> 0.0244602775 | K174: =IF(('Screener Input'!J22)/('Screener Input'!J$17+'Screener Input'!J$25)<0, 0, ('Screener Input'!J22)/('Screener Input'!J$17+'Screener Input'!J$25)) -> 0.0282289408 | L174: =IF(('Screener Input'!K22)/('Screener Input'!K$17+'Screener Input'!K$25)<0, 0, ('Screener Input'!K22)/('Screener Input'!K$17+'Screener Input'!K$25)) -> 0.02848858091
A175: Selling and admin | C175: =IF(('Screener Input'!B23)/('Screener Input'!B$17+'Screener Input'!B$25)<0, 0, ('Screener Input'!B23)/('Screener Input'!B$17+'Screener Input'!B$25)) -> 0.04497393894 | D175: =IF(('Screener Input'!C23)/('Screener Input'!C$17+'Screener Input'!C$25)<0, 0, ('Screener Input'!C23)/('Screener Input'!C$17+'Screener Input'!C$25)) -> 0.05071433408 | E175: =IF(('Screener Input'!D23)/('Screener Input'!D$17+'Screener Input'!D$25)<0, 0, ('Screener Input'!D23)/('Screener Input'!D$17+'Screener Input'!D$25)) -> 0.04448012846 | F175: =IF(('Screener Input'!E23)/('Screener Input'!E$17+'Screener Input'!E$25)<0, 0, ('Screener Input'!E23)/('Screener Input'!E$17+'Screener Input'!E$25)) -> 0.04252027844 | G175: =IF(('Screener Input'!F23)/('Screener Input'!F$17+'Screener Input'!F$25)<0, 0, ('Screener Input'!F23)/('Screener Input'!F$17+'Screener Input'!F$25)) -> 0.04115718182 | H175: =IF(('Screener Input'!G23)/('Screener Input'!G$17+'Screener Input'!G$25)<0, 0, ('Screener Input'!G23)/('Screener Input'!G$17+'Screener Input'!G$25)) -> 0.03839150439 | I175: =IF(('Screener Input'!H23)/('Screener Input'!H$17+'Screener Input'!H$25)<0, 0, ('Screener Input'!H23)/('Screener Input'!H$17+'Screener Input'!H$25)) -> 0.0464695164 | J175: =IF(('Screener Input'!I23)/('Screener Input'!I$17+'Screener Input'!I$25)<0, 0, ('Screener Input'!I23)/('Screener Input'!I$17+'Screener Input'!I$25)) -> 0.04588846628 | K175: =IF(('Screener Input'!J23)/('Screener Input'!J$17+'Screener Input'!J$25)<0, 0, ('Screener Input'!J23)/('Screener Input'!J$17+'Screener Input'!J$25)) -> 0.05325655607 | L175: =IF(('Screener Input'!K23)/('Screener Input'!K$17+'Screener Input'!K$25)<0, 0, ('Screener Input'!K23)/('Screener Input'!K$17+'Screener Input'!K$25)) -> 0.05489220419
A176: Other Expenses | C176: =IF(('Screener Input'!B24)/('Screener Input'!B$17+'Screener Input'!B$25)<0, 0, ('Screener Input'!B24)/('Screener Input'!B$17+'Screener Input'!B$25)) -> 0.005467503457 | D176: =IF(('Screener Input'!C24)/('Screener Input'!C$17+'Screener Input'!C$25)<0, 0, ('Screener Input'!C24)/('Screener Input'!C$17+'Screener Input'!C$25)) -> 0 | E176: =IF(('Screener Input'!D24)/('Screener Input'!D$17+'Screener Input'!D$25)<0, 0, ('Screener Input'!D24)/('Screener Input'!D$17+'Screener Input'!D$25)) -> 0.002676301352 | F176: =IF(('Screener Input'!E24)/('Screener Input'!E$17+'Screener Input'!E$25)<0, 0, ('Screener Input'!E24)/('Screener Input'!E$17+'Screener Input'!E$25)) -> 0.02964916804 | G176: =IF(('Screener Input'!F24)/('Screener Input'!F$17+'Screener Input'!F$25)<0, 0, ('Screener Input'!F24)/('Screener Input'!F$17+'Screener Input'!F$25)) -> 0.01469461555 | H176: =IF(('Screener Input'!G24)/('Screener Input'!G$17+'Screener Input'!G$25)<0, 0, ('Screener Input'!G24)/('Screener Input'!G$17+'Screener Input'!G$25)) -> 0.01584587799 | I176: =IF(('Screener Input'!H24)/('Screener Input'!H$17+'Screener Input'!H$25)<0, 0, ('Screener Input'!H24)/('Screener Input'!H$17+'Screener Input'!H$25)) -> 0.01224549848 | J176: =IF(('Screener Input'!I24)/('Screener Input'!I$17+'Screener Input'!I$25)<0, 0, ('Screener Input'!I24)/('Screener Input'!I$17+'Screener Input'!I$25)) -> 0.01143193872 | K176: =IF(('Screener Input'!J24)/('Screener Input'!J$17+'Screener Input'!J$25)<0, 0, ('Screener Input'!J24)/('Screener Input'!J$17+'Screener Input'!J$25)) -> 0.007507261793 | L176: =IF(('Screener Input'!K24)/('Screener Input'!K$17+'Screener Input'!K$25)<0, 0, ('Screener Input'!K24)/('Screener Input'!K$17+'Screener Input'!K$25)) -> 0.006167269669
A177: Depreciation | C177: =IF(('Screener Input'!B26)/('Screener Input'!B$17+'Screener Input'!B$25)<0, 0, ('Screener Input'!B26)/('Screener Input'!B$17+'Screener Input'!B$25)) -> 0.0305499415 | D177: =IF(('Screener Input'!C26)/('Screener Input'!C$17+'Screener Input'!C$25)<0, 0, ('Screener Input'!C26)/('Screener Input'!C$17+'Screener Input'!C$25)) -> 0.03227480985 | E177: =IF(('Screener Input'!D26)/('Screener Input'!D$17+'Screener Input'!D$25)<0, 0, ('Screener Input'!D26)/('Screener Input'!D$17+'Screener Input'!D$25)) -> 0.05154556403 | F177: =IF(('Screener Input'!E26)/('Screener Input'!E$17+'Screener Input'!E$25)<0, 0, ('Screener Input'!E26)/('Screener Input'!E$17+'Screener Input'!E$25)) -> 0.03986276104 | G177: =IF(('Screener Input'!F26)/('Screener Input'!F$17+'Screener Input'!F$25)<0, 0, ('Screener Input'!F26)/('Screener Input'!F$17+'Screener Input'!F$25)) -> 0.04388464957 | H177: =IF(('Screener Input'!G26)/('Screener Input'!G$17+'Screener Input'!G$25)<0, 0, ('Screener Input'!G26)/('Screener Input'!G$17+'Screener Input'!G$25)) -> 0.04044868855 | I177: =IF(('Screener Input'!H26)/('Screener Input'!H$17+'Screener Input'!H$25)<0, 0, ('Screener Input'!H26)/('Screener Input'!H$17+'Screener Input'!H$25)) -> 0.03035344447 | J177: =IF(('Screener Input'!I26)/('Screener Input'!I$17+'Screener Input'!I$25)<0, 0, ('Screener Input'!I26)/('Screener Input'!I$17+'Screener Input'!I$25)) -> 0.03040659988 | K177: =IF(('Screener Input'!J26)/('Screener Input'!J$17+'Screener Input'!J$25)<0, 0, ('Screener Input'!J26)/('Screener Input'!J$17+'Screener Input'!J$25)) -> 0.03400769136 | L177: =IF(('Screener Input'!K26)/('Screener Input'!K$17+'Screener Input'!K$25)<0, 0, ('Screener Input'!K26)/('Screener Input'!K$17+'Screener Input'!K$25)) -> 0.02986395213
A178: Interest | C178: =IF(('Screener Input'!B27)/('Screener Input'!B$17+'Screener Input'!B$25)<0, 0, ('Screener Input'!B27)/('Screener Input'!B$17+'Screener Input'!B$25)) -> 0.04093181576 | D178: =IF(('Screener Input'!C27)/('Screener Input'!C$17+'Screener Input'!C$25)<0, 0, ('Screener Input'!C27)/('Screener Input'!C$17+'Screener Input'!C$25)) -> 0.03665335049 | E178: =IF(('Screener Input'!D27)/('Screener Input'!D$17+'Screener Input'!D$25)<0, 0, ('Screener Input'!D27)/('Screener Input'!D$17+'Screener Input'!D$25)) -> 0.04266024354 | F178: =IF(('Screener Input'!E27)/('Screener Input'!E$17+'Screener Input'!E$25)<0, 0, ('Screener Input'!E27)/('Screener Input'!E$17+'Screener Input'!E$25)) -> 0.02945084584 | G178: =IF(('Screener Input'!F27)/('Screener Input'!F$17+'Screener Input'!F$25)<0, 0, ('Screener Input'!F27)/('Screener Input'!F$17+'Screener Input'!F$25)) -> 0.03165701327 | H178: =IF(('Screener Input'!G27)/('Screener Input'!G$17+'Screener Input'!G$25)<0, 0, ('Screener Input'!G27)/('Screener Input'!G$17+'Screener Input'!G$25)) -> 0.02371321741 | I178: =IF(('Screener Input'!H27)/('Screener Input'!H$17+'Screener Input'!H$25)<0, 0, ('Screener Input'!H27)/('Screener Input'!H$17+'Screener Input'!H$25)) -> 0.01540307156 | J178: =IF(('Screener Input'!I27)/('Screener Input'!I$17+'Screener Input'!I$25)<0, 0, ('Screener Input'!I27)/('Screener Input'!I$17+'Screener Input'!I$25)) -> 0.01159265013 | K178: =IF(('Screener Input'!J27)/('Screener Input'!J$17+'Screener Input'!J$25)<0, 0, ('Screener Input'!J27)/('Screener Input'!J$17+'Screener Input'!J$25)) -> 0.01142453872 | L178: =IF(('Screener Input'!K27)/('Screener Input'!K$17+'Screener Input'!K$25)<0, 0, ('Screener Input'!K27)/('Screener Input'!K$17+'Screener Input'!K$25)) -> 0.006859335442
A179: Tax | C179: =IF(('Screener Input'!B29)/('Screener Input'!B$17+'Screener Input'!B$25)<0, 0, ('Screener Input'!B29)/('Screener Input'!B$17+'Screener Input'!B$25)) -> 0.009339431975 | D179: =IF(('Screener Input'!C29)/('Screener Input'!C$17+'Screener Input'!C$25)<0, 0, ('Screener Input'!C29)/('Screener Input'!C$17+'Screener Input'!C$25)) -> 0.01850723362 | E179: =IF(('Screener Input'!D29)/('Screener Input'!D$17+'Screener Input'!D$25)<0, 0, ('Screener Input'!D29)/('Screener Input'!D$17+'Screener Input'!D$25)) -> 0.03444399839 | F179: =IF(('Screener Input'!E29)/('Screener Input'!E$17+'Screener Input'!E$25)<0, 0, ('Screener Input'!E29)/('Screener Input'!E$17+'Screener Input'!E$25)) -> 0.03555916943 | G179: =IF(('Screener Input'!F29)/('Screener Input'!F$17+'Screener Input'!F$25)<0, 0, ('Screener Input'!F29)/('Screener Input'!F$17+'Screener Input'!F$25)) -> 0.04048297631 | H179: =IF(('Screener Input'!G29)/('Screener Input'!G$17+'Screener Input'!G$25)<0, 0, ('Screener Input'!G29)/('Screener Input'!G$17+'Screener Input'!G$25)) -> 0.04885812379 | I179: =IF(('Screener Input'!H29)/('Screener Input'!H$17+'Screener Input'!H$25)<0, 0, ('Screener Input'!H29)/('Screener Input'!H$17+'Screener Input'!H$25)) -> 0.04508878552 | J179: =IF(('Screener Input'!I29)/('Screener Input'!I$17+'Screener Input'!I$25)<0, 0, ('Screener Input'!I29)/('Screener Input'!I$17+'Screener Input'!I$25)) -> 0.04782771736 | K179: =IF(('Screener Input'!J29)/('Screener Input'!J$17+'Screener Input'!J$25)<0, 0, ('Screener Input'!J29)/('Screener Input'!J$17+'Screener Input'!J$25)) -> 0.05558851205 | L179: =IF(('Screener Input'!K29)/('Screener Input'!K$17+'Screener Input'!K$25)<0, 0, ('Screener Input'!K29)/('Screener Input'!K$17+'Screener Input'!K$25)) -> 0.04704295188
A180: Net profit | C180: =1-SUM(C171:C179) -> 0.03391128603 | D180: =1-SUM(D171:D179) -> 0.06366939761 | E180: 0.07078817075 | F180: 0.07187196319 | G180: 0.07269161227 | H180: 0.08950141084 | I180: 0.1063615478 | J180: 0.1308512348 | K180: 0.1376263143 | L180: 0.1297579522
C181: =SUM(C171:C180) -> 1 | D181: =SUM(D171:D180) -> 1 | E181: 1 | F181: 1 | G181: 1 | H181: 1 | I181: 1 | J181: 1 | K181: 1 | L181: 1
A183: P/L - Annual - YoY change | C183: =C4 -> 2009-03-01 | D183: 2010-03-01 | E183: 2011-03-01 | F183: 2012-03-01 | G183: 2013-03-01 | H183: 2014-03-01 | I183: 2015-03-01 | J183: 2016-03-01 | K183: 2017-03-01 | L183: 2018-03-01
A184: Sales | D184: =('Screener Input'!C17+'Screener Input'!C25) -> 443.07 | E184: =('Screener Input'!D17+'Screener Input'!D25) -> 373.65 | F184: =('Screener Input'!E17+'Screener Input'!E25) -> 504.23 | G184: =('Screener Input'!F17+'Screener Input'!F25) -> 652.62 | H184: =('Screener Input'!G17+'Screener Input'!G25) -> 719.43 | I184: =('Screener Input'!H17+'Screener Input'!H25) -> 883.59 | J184: =('Screener Input'!I17+'Screener Input'!I25) -> 933.35 | K184: =('Screener Input'!J17+'Screener Input'!J25) -> 977.72 | L184: =('Screener Input'!K17+'Screener Input'!K25) -> 1141.51
A185: Sales YoY | D185: =('Screener Input'!C17+'Screener Input'!C25)/('Screener Input'!B17+'Screener Input'!B25)-1 -> -0.05739814913 | E185: =('Screener Input'!D17+'Screener Input'!D25)/('Screener Input'!C17+'Screener Input'!C25)-1 -> -0.1566795315 | F185: =('Screener Input'!E17+'Screener Input'!E25)/('Screener Input'!D17+'Screener Input'!D25)-1 -> 0.3494714305 | G185: =('Screener Input'!F17+'Screener Input'!F25)/('Screener Input'!E17+'Screener Input'!E25)-1 -> 0.294290304 | H185: =('Screener Input'!G17+'Screener Input'!G25)/('Screener Input'!F17+'Screener Input'!F25)-1 -> 0.1023719776 | I185: =('Screener Input'!H17+'Screener Input'!H25)/('Screener Input'!G17+'Screener Input'!G25)-1 -> 0.228180643 | J185: =('Screener Input'!I17+'Screener Input'!I25)/('Screener Input'!H17+'Screener Input'!H25)-1 -> 0.05631571204 | K185: =('Screener Input'!J17+'Screener Input'!J25)/('Screener Input'!I17+'Screener Input'!I25)-1 -> 0.04753843681 | L185: =('Screener Input'!K17+'Screener Input'!K25)/('Screener Input'!J17+'Screener Input'!J25)-1 -> 0.1675223991
A186: EPS | D186: ='Screener Input'!C30/'Screener Input'!C93 -> 4.209642607 | E186: ='Screener Input'!D30/'Screener Input'!D93 -> 3.97660882 | F186: ='Screener Input'!E30/'Screener Input'!E93 -> 5.448480289 | G186: ='Screener Input'!F30/'Screener Input'!F93 -> 7.130833888 | H186: ='Screener Input'!G30/'Screener Input'!G93 -> 4.842592442 | I186: ='Screener Input'!H30/'Screener Input'!H93 -> 7.064682361 | J186: ='Screener Input'!I30/'Screener Input'!I93 -> 9.180027772 | K186: ='Screener Input'!J30/'Screener Input'!J93 -> 10.11516981 | L186: ='Screener Input'!K30/'Screener Input'!K93 -> 11.13525642
A187: EPS YoY | D187: =(('Screener Input'!C30/'Screener Input'!C93)/('Screener Input'!B30/'Screener Input'!B93))-1 -> 0.6480282519 | E187: =(('Screener Input'!D30/'Screener Input'!D93)/('Screener Input'!C30/'Screener Input'!C93))-1 -> -0.05535714286 | F187: =(('Screener Input'!E30/'Screener Input'!E93)/('Screener Input'!D30/'Screener Input'!D93))-1 -> 0.3701323251 | G187: =(('Screener Input'!F30/'Screener Input'!F93)/('Screener Input'!E30/'Screener Input'!E93))-1 -> 0.3087748344 | H187: =(('Screener Input'!G30/'Screener Input'!G93)/('Screener Input'!F30/'Screener Input'!F93))-1 -> -0.320893949 | I187: =(('Screener Input'!H30/'Screener Input'!H93)/('Screener Input'!G30/'Screener Input'!G93))-1 -> 0.4588637069 | J187: =(('Screener Input'!I30/'Screener Input'!I93)/('Screener Input'!H30/'Screener Input'!H93))-1 -> 0.2994254097 | K187: =(('Screener Input'!J30/'Screener Input'!J93)/('Screener Input'!I30/'Screener Input'!I93))-1 -> 0.101867016 | L187: =(('Screener Input'!K30/'Screener Input'!K93)/('Screener Input'!J30/'Screener Input'!J93))-1 -> 0.1008472057
A189: P/L - QoQ - change | C189: ='Screener Input'!B41 -> 2016-06-30 | D189: ='Screener Input'!C41 -> 2016-09-30 | E189: ='Screener Input'!D41 -> 2016-12-31 | F189: ='Screener Input'!E41 -> 2017-03-31 | G189: ='Screener Input'!F41 -> 2017-06-30 | H189: ='Screener Input'!G41 -> 2017-09-30 | I189: ='Screener Input'!H41 -> 2017-12-31 | J189: ='Screener Input'!I41 -> 2018-03-31 | K189: ='Screener Input'!J41 -> 2018-06-30 | L189: ='Screener Input'!K41 -> 2018-09-30
A190: Sales | C190: =('Screener Input'!B42+'Screener Input'!B44) -> 250.99 | D190: =('Screener Input'!C42+'Screener Input'!C44) -> 144.32 | E190: =('Screener Input'!D42+'Screener Input'!D44) -> 289.29 | F190: =('Screener Input'!E42+'Screener Input'!E44) -> 299.11 | G190: =('Screener Input'!F42+'Screener Input'!F44) -> 249.31 | H190: =('Screener Input'!G42+'Screener Input'!G44) -> 296.63 | I190: =('Screener Input'!H42+'Screener Input'!H44) -> 274.4 | J190: =('Screener Input'!I42+'Screener Input'!I44) -> 322.51 | K190: =('Screener Input'!J42+'Screener Input'!J44) -> 294.78 | L190: =('Screener Input'!K42+'Screener Input'!K44) -> 292.11
A191: Sales QoQ | G191: =G190/C190-1 -> -0.006693493765 | H191: 1.055363082 | I191: -0.05147084241 | J191: 0.07823208853 | K191: 0.1823833781 | L191: =L190/H190-1 -> -0.01523783838
A192: NP | C192: ='Screener Input'!B49 -> 40.3 | D192: ='Screener Input'!C49 -> 13.04 | E192: ='Screener Input'!D49 -> 45.59 | F192: ='Screener Input'!E49 -> 35.63 | G192: ='Screener Input'!F49 -> 27.04 | H192: ='Screener Input'!G49 -> 33.43 | I192: ='Screener Input'!H49 -> 40.42 | J192: ='Screener Input'!I49 -> 47.24 | K192: ='Screener Input'!J49 -> 39.46 | L192: ='Screener Input'!K49 -> 47.18
A193: NP QoQ | G193: =G192/C192-1 -> -0.3290322581 | H193: 1.563650307 | I193: -0.1134020619 | J193: 0.3258490036 | K193: 0.4593195266 | L193: =L192/H192-1 -> 0.4113072091
A195: P/L - Quaterly | C195: ='Screener Input'!B41 -> 2016-06-30 | D195: ='Screener Input'!C41 -> 2016-09-30 | E195: ='Screener Input'!D41 -> 2016-12-31 | F195: ='Screener Input'!E41 -> 2017-03-31 | G195: ='Screener Input'!F41 -> 2017-06-30 | H195: ='Screener Input'!G41 -> 2017-09-30 | I195: ='Screener Input'!H41 -> 2017-12-31 | J195: ='Screener Input'!I41 -> 2018-03-31 | K195: ='Screener Input'!J41 -> 2018-06-30 | L195: ='Screener Input'!K41 -> 2018-09-30
A196: Expenses | C196: =IF('Screener Input'!B43/('Screener Input'!B42+'Screener Input'!B44)<0, 0, 'Screener Input'!B43/('Screener Input'!B42+'Screener Input'!B44)) -> 0.7498306705 | D196: =IF('Screener Input'!C43/('Screener Input'!C42+'Screener Input'!C44)<0, 0, 'Screener Input'!C43/('Screener Input'!C42+'Screener Input'!C44)) -> 0.7989190687 | E196: =IF('Screener Input'!D43/('Screener Input'!D42+'Screener Input'!D44)<0, 0, 'Screener Input'!D43/('Screener Input'!D42+'Screener Input'!D44)) -> 0.7334508625 | F196: =IF('Screener Input'!E43/('Screener Input'!E42+'Screener Input'!E44)<0, 0, 'Screener Input'!E43/('Screener Input'!E42+'Screener Input'!E44)) -> 0.7846277289 | G196: =IF('Screener Input'!F43/('Screener Input'!F42+'Screener Input'!F44)<0, 0, 'Screener Input'!F43/('Screener Input'!F42+'Screener Input'!F44)) -> 0.8064658457 | H196: =IF('Screener Input'!G43/('Screener Input'!G42+'Screener Input'!G44)<0, 0, 'Screener Input'!G43/('Screener Input'!G42+'Screener Input'!G44)) -> 0.805110744 | I196: =IF('Screener Input'!H43/('Screener Input'!H42+'Screener Input'!H44)<0, 0, 'Screener Input'!H43/('Screener Input'!H42+'Screener Input'!H44)) -> 0.7635932945 | J196: =IF('Screener Input'!I43/('Screener Input'!I42+'Screener Input'!I44)<0, 0, 'Screener Input'!I43/('Screener Input'!I42+'Screener Input'!I44)) -> 0.7742395585 | K196: =IF('Screener Input'!J43/('Screener Input'!J42+'Screener Input'!J44)<0, 0, 'Screener Input'!J43/('Screener Input'!J42+'Screener Input'!J44)) -> 0.7828210869 | L196: =IF('Screener Input'!K43/('Screener Input'!K42+'Screener Input'!K44)<0, 0, 'Screener Input'!K43/('Screener Input'!K42+'Screener Input'!K44)) -> 0.7342439492
A197: Depreciation | C197: =IF('Screener Input'!B45/('Screener Input'!B42+'Screener Input'!B44)<0,0, 'Screener Input'!B45/('Screener Input'!B42+'Screener Input'!B44)) -> 0.0334276266 | D197: =IF('Screener Input'!C45/('Screener Input'!C42+'Screener Input'!C44)<0,0, 'Screener Input'!C45/('Screener Input'!C42+'Screener Input'!C44)) -> 0.05938192905 | E197: =IF('Screener Input'!D45/('Screener Input'!D42+'Screener Input'!D44)<0,0, 'Screener Input'!D45/('Screener Input'!D42+'Screener Input'!D44)) -> 0.02996992637 | F197: =IF('Screener Input'!E45/('Screener Input'!E42+'Screener Input'!E44)<0,0, 'Screener Input'!E45/('Screener Input'!E42+'Screener Input'!E44)) -> 0.02547557755 | G197: =IF('Screener Input'!F45/('Screener Input'!F42+'Screener Input'!F44)<0,0, 'Screener Input'!F45/('Screener Input'!F42+'Screener Input'!F44)) -> 0.03333199631 | H197: =IF('Screener Input'!G45/('Screener Input'!G42+'Screener Input'!G44)<0,0, 'Screener Input'!G45/('Screener Input'!G42+'Screener Input'!G44)) -> 0.0290260594 | I197: =IF('Screener Input'!H45/('Screener Input'!H42+'Screener Input'!H44)<0,0, 'Screener Input'!H45/('Screener Input'!H42+'Screener Input'!H44)) -> 0.0306851312 | J197: =IF('Screener Input'!I45/('Screener Input'!I42+'Screener Input'!I44)<0,0, 'Screener Input'!I45/('Screener Input'!I42+'Screener Input'!I44)) -> 0.02709993489 | K197: =IF('Screener Input'!J45/('Screener Input'!J42+'Screener Input'!J44)<0,0, 'Screener Input'!J45/('Screener Input'!J42+'Screener Input'!J44)) -> 0.03198995861 | L197: =IF('Screener Input'!K45/('Screener Input'!K42+'Screener Input'!K44)<0,0, 'Screener Input'!K45/('Screener Input'!K42+'Screener Input'!K44)) -> 0.02992023553
A198: Interest | C198: =IF('Screener Input'!B46/('Screener Input'!B42+'Screener Input'!B44)<0, 0, 'Screener Input'!B46/('Screener Input'!B42+'Screener Input'!B44)) -> 0.01151440296 | D198: =IF('Screener Input'!C46/('Screener Input'!C42+'Screener Input'!C44)<0, 0, 'Screener Input'!C46/('Screener Input'!C42+'Screener Input'!C44)) -> 0.01462028825 | E198: =IF('Screener Input'!D46/('Screener Input'!D42+'Screener Input'!D44)<0, 0, 'Screener Input'!D46/('Screener Input'!D42+'Screener Input'!D44)) -> 0.00871098206 | F198: =IF('Screener Input'!E46/('Screener Input'!E42+'Screener Input'!E44)<0, 0, 'Screener Input'!E46/('Screener Input'!E42+'Screener Input'!E44)) -> 0.01223630103 | G198: =IF('Screener Input'!F46/('Screener Input'!F42+'Screener Input'!F44)<0, 0, 'Screener Input'!F46/('Screener Input'!F42+'Screener Input'!F44)) -> 0.007099594882 | H198: =IF('Screener Input'!G46/('Screener Input'!G42+'Screener Input'!G44)<0, 0, 'Screener Input'!G46/('Screener Input'!G42+'Screener Input'!G44)) -> 0.007079526683 | I198: =IF('Screener Input'!H46/('Screener Input'!H42+'Screener Input'!H44)<0, 0, 'Screener Input'!H46/('Screener Input'!H42+'Screener Input'!H44)) -> 0.006741982507 | J198: =IF('Screener Input'!I46/('Screener Input'!I42+'Screener Input'!I44)<0, 0, 'Screener Input'!I46/('Screener Input'!I42+'Screener Input'!I44)) -> 0.006542432793 | K198: =IF('Screener Input'!J46/('Screener Input'!J42+'Screener Input'!J44)<0, 0, 'Screener Input'!J46/('Screener Input'!J42+'Screener Input'!J44)) -> 0.008107741366 | L198: =IF('Screener Input'!K46/('Screener Input'!K42+'Screener Input'!K44)<0, 0, 'Screener Input'!K46/('Screener Input'!K42+'Screener Input'!K44)) -> 0.01126288042
A199: Tax | C199: =IF('Screener Input'!B48/('Screener Input'!B42+'Screener Input'!B44)<0, 0, 'Screener Input'!B48/('Screener Input'!B42+'Screener Input'!B44)) -> 0.04466313399 | D199: =IF('Screener Input'!C48/('Screener Input'!C42+'Screener Input'!C44)<0, 0, 'Screener Input'!C48/('Screener Input'!C42+'Screener Input'!C44)) -> 0.03672394678 | E199: =IF('Screener Input'!D48/('Screener Input'!D42+'Screener Input'!D44)<0, 0, 'Screener Input'!D48/('Screener Input'!D42+'Screener Input'!D44)) -> 0.07027550209 | F199: =IF('Screener Input'!E48/('Screener Input'!E42+'Screener Input'!E44)<0, 0, 'Screener Input'!E48/('Screener Input'!E42+'Screener Input'!E44)) -> 0.05850690381 | G199: =IF('Screener Input'!F48/('Screener Input'!F42+'Screener Input'!F44)<0, 0, 'Screener Input'!F48/('Screener Input'!F42+'Screener Input'!F44)) -> 0.04464321527 | H199: =IF('Screener Input'!G48/('Screener Input'!G42+'Screener Input'!G44)<0, 0, 'Screener Input'!G48/('Screener Input'!G42+'Screener Input'!G44)) -> 0.04611805954 | I199: =IF('Screener Input'!H48/('Screener Input'!H42+'Screener Input'!H44)<0, 0, 'Screener Input'!H48/('Screener Input'!H42+'Screener Input'!H44)) -> 0.05163994169 | J199: =IF('Screener Input'!I48/('Screener Input'!I42+'Screener Input'!I44)<0, 0, 'Screener Input'!I48/('Screener Input'!I42+'Screener Input'!I44)) -> 0.0456419956 | K199: =IF('Screener Input'!J48/('Screener Input'!J42+'Screener Input'!J44)<0, 0, 'Screener Input'!J48/('Screener Input'!J42+'Screener Input'!J44)) -> 0.04318474795 | L199: =IF('Screener Input'!K48/('Screener Input'!K42+'Screener Input'!K44)<0, 0, 'Screener Input'!K48/('Screener Input'!K42+'Screener Input'!K44)) -> 0.06302420321
A200: Net profit | C200: =1-SUM(C196:C199) -> 0.1605641659 | D200: =1-SUM(D196:D199) -> 0.09035476718 | E200: 0.157592727 | F200: 0.1191534887 | G200: 0.1084593478 | H200: 0.1126656104 | I200: 0.1473396501 | J200: 0.1464760783 | K200: 0.1338964652 | L200: 0.1615487316
H202: =H24 -> 2014-03-01 | I202: =I24 -> 2015-03-01 | J202: =J24 -> 2016-03-01 | K202: 2017-03-01 | L202: 2018-03-01 | M202: TTMI
E203: 1e-05 | F203: =SUM(I203:M203)+E203 -> 3.00001 | G203: Fast Grower | I203: =IF(I35/H35-1 >0.2,1, 0) -> 1 | J203: =IF(J35/I35-1 >0.2,1, 0) -> 1 | K203: 0 | L203: 0 | M203: =IF(M35/N35-1 >0.2,1, 0) -> 1
E204: 2e-05 | F204: =SUM(I204:M204)+E204 -> 2.00002 | G204: Stalwart | I204: =IF(I203+I205>0, 0, 1) -> 0 | J204: =IF(J203+J205>0, 0, 1) -> 0 | K204: 1 | L204: 1 | M204: 0
E205: 3e-05 | F205: 3e-05 | G205: Slow Grower | I205: =IF(I35/H35-1 <0.1,1, 0) -> 0 | J205: =IF(J35/I35-1 <0.1,1, 0) -> 0 | K205: 0 | L205: 0 | M205: =IF(M35/N35-1 <0.1,1, 0) -> 0
G207: YoY PAT growth | H207: =H35/G35-1 -> 0.3572934233 | I207: =I35/H35-1 -> 0.4595434074 | J207: =J35/I35-1 -> 0.2995318153 | K207: 0.1017767952 | L207: 0.1007728894 | M207: =M35/N35-1 -> 0.2301503282

Sheet ||| (hidden)

Sheet Screener Input
A1: COMPANY NAME | B1: CCL PRODUCTS (INDIA) LTD | E1: =IF(B2<>B3, "A NEW VERSION OF THE WORKSHEET IS AVAILABLE", "") -> 
A2: LATEST VERSION | B2: 2.1 | E2: PLEASE DO NOT MAKE ANY CHANGES TO THIS SHEET
A3: CURRENT VERSION | B3: 2.1
A5: META
A6: Number of shares | B6: =IF(B9>0, B9/B8, 0) -> 13.30277625
A7: Face Value | B7: 2
A8: Current Price | B8: 271.95
A9: Market Capitalization | B9: 3617.69
A15: PROFIT & LOSS
A16: Report Date | B16: 2009-03-31 | C16: 2010-03-31 | D16: 2011-03-31 | E16: 2012-03-31 | F16: 2013-03-31 | G16: 2014-03-31 | H16: 2015-03-31 | I16: 2016-03-31 | J16: 2017-03-31 | K16: 2018-03-31
A17: Sales | B17: 468.25 | C17: 437.54 | D17: 363.87 | E17: 502.22 | F17: 650.74 | G17: 716.83 | H17: 880.57 | I17: 932.13 | J17: 976.49 | K17: 1136.67
A18: Raw Material Cost | B18: 347.68 | C18: 285.02 | D18: 222.77 | E18: 299.43 | F18: 396.68 | G18: 419.98 | H18: 555.33 | I18: 546.29 | J18: 544.06 | K18: 719.51
A19: Change in Inventory | B19: 7.65 | C19: -13.85 | D19: 13.42 | E19: -3.77 | F19: 12.15 | G19: -5.08 | H19: 11.37 | I19: -0.44 | J19: -7.86 | K19: 28.94
A20: Power and Fuel | B20: 10.15 | C20: 16.37 | D20: 23.16 | E20: 25.29 | F20: 40.95 | G20: 38.34 | H20: 41.61 | I20: 41.83 | J20: 35.72 | K20: 43.26
A21: Other Mfr. Exp | B21: 33.05 | C21: 29.1 | D21: 39.22 | E21: 39.28 | F21: 52.32 | G21: 54.28 | H21: 53.29 | I21: 62.49 | J21: 69.74 | K21: 61.72
A22: Employee Cost | B22: 9.18 | C22: 9.31 | D22: 9.78 | E22: 10.95 | F22: 15.21 | G22: 17.03 | H22: 18.6 | I22: 22.83 | J22: 27.6 | K22: 32.52
A23: Selling and admin | B23: 21.14 | C23: 22.47 | D23: 16.62 | E23: 21.44 | F23: 26.86 | G23: 27.62 | H23: 41.06 | I23: 42.83 | J23: 52.07 | K23: 62.66
A24: Other Expenses | B24: 2.57 | C24: -0.07 | D24: 1 | E24: 14.95 | F24: 9.59 | G24: 11.4 | H24: 10.82 | I24: 10.67 | J24: 7.34 | K24: 7.04
A25: Other Income | B25: 1.8 | C25: 5.53 | D25: 9.78 | E25: 2.01 | F25: 1.88 | G25: 2.6 | H25: 3.02 | I25: 1.22 | J25: 1.23 | K25: 4.84
A26: Depreciation | B26: 14.36 | C26: 14.3 | D26: 19.26 | E26: 20.1 | F26: 28.64 | G26: 29.1 | H26: 26.82 | I26: 28.38 | J26: 33.25 | K26: 34.09
A27: Interest | B27: 19.24 | C27: 16.24 | D27: 15.94 | E27: 14.85 | F27: 20.66 | G27: 17.06 | H27: 13.61 | I27: 10.82 | J27: 11.17 | K27: 7.83
A28: Profit before tax | B28: 21.8 | C28: 36.48 | D28: 39.32 | E28: 54.17 | F28: 73.84 | G28: 99.57 | H28: 133.82 | I28: 166.76 | J28: 188.91 | K28: 201.82
A29: Tax | B29: 4.39 | C29: 8.2 | D29: 12.87 | E29: 17.93 | F29: 26.42 | G29: 35.15 | H29: 39.84 | I29: 44.64 | J29: 54.35 | K29: 53.7
A30: Net profit | B30: 16.99 | C30: 28 | D30: 26.45 | E30: 36.24 | F30: 47.43 | G30: 64.42 | H30: 93.98 | I30: 122.12 | J30: 134.56 | K30: 148.13
A31: Dividend Amount | B31: 1.33 | C31: 2 | D31: 2.66 | E31: 6.65 | F31: 6.65 | G31: 15.97 | H31: 19.96 | I31: 33.26 | J31: 33.26 | K31: 33.26
A40: Quarters
A41: Report Date | B41: 2016-06-30 | C41: 2016-09-30 | D41: 2016-12-31 | E41: 2017-03-31 | F41: 2017-06-30 | G41: 2017-09-30 | H41: 2017-12-31 | I41: 2018-03-31 | J41: 2018-06-30 | K41: 2018-09-30
A42: Sales | B42: 250.58 | C42: 143.96 | D42: 289.1 | E42: 298.85 | F42: 246.76 | G42: 296.37 | H42: 273.99 | I42: 320.88 | J42: 294.45 | K42: 290.76
A43: Expenses | B43: 188.2 | C43: 115.3 | D43: 212.18 | E43: 234.69 | F43: 201.06 | G43: 238.82 | H43: 209.53 | I43: 249.7 | J43: 230.76 | K43: 214.48
A44: Other Income | B44: 0.41 | C44: 0.36 | D44: 0.19 | E44: 0.26 | F44: 2.55 | G44: 0.26 | H44: 0.41 | I44: 1.63 | J44: 0.33 | K44: 1.35
A45: Depreciation | B45: 8.39 | C45: 8.57 | D45: 8.67 | E45: 7.62 | F45: 8.31 | G45: 8.61 | H45: 8.42 | I45: 8.74 | J45: 9.43 | K45: 8.74
A46: Interest | B46: 2.89 | C46: 2.11 | D46: 2.52 | E46: 3.66 | F46: 1.77 | G46: 2.1 | H46: 1.85 | I46: 2.11 | J46: 2.39 | K46: 3.29
A47: Profit before tax | B47: 51.51 | C47: 18.34 | D47: 65.92 | E47: 53.14 | F47: 38.17 | G47: 47.1 | H47: 54.6 | I47: 61.96 | J47: 52.2 | K47: 65.6
A48: Tax | B48: 11.21 | C48: 5.3 | D48: 20.33 | E48: 17.5 | F48: 11.13 | G48: 13.68 | H48: 14.17 | I48: 14.72 | J48: 12.73 | K48: 18.41
A49: Net profit | B49: 40.3 | C49: 13.04 | D49: 45.59 | E49: 35.63 | F49: 27.04 | G49: 33.43 | H49: 40.42 | I49: 47.24 | J49: 39.46 | K49: 47.18
A50: Operating Profit | B50: 62.38 | C50: 28.66 | D50: 76.92 | E50: 64.16 | F50: 45.7 | G50: 57.55 | H50: 64.46 | I50: 71.18 | J50: 63.69 | K50: 76.28
A55: BALANCE SHEET
A56: Report Date | B56: 2009-03-31 | C56: 2010-03-31 | D56: 2011-03-31 | E56: 2012-03-31 | F56: 2013-03-31 | G56: 2014-03-31 | H56: 2015-03-31 | I56: 2016-03-31 | J56: 2017-03-31 | K56: 2018-03-31
A57: Equity Share Capital | B57: 13.3 | C57: 13.3 | D57: 13.3 | E57: 13.3 | F57: 13.3 | G57: 26.61 | H57: 26.61 | I57: 26.61 | J57: 26.61 | K57: 26.61
A58: Reserves | B58: 162.3 | C58: 187.56 | D58: 203.86 | E58: 226.44 | F58: 265.08 | G58: 326.18 | H58: 394.97 | I58: 483.19 | J58: 601.7 | K58: 713.33
A59: Borrowings | B59: 238.92 | C59: 236.58 | D59: 220.47 | E59: 267.88 | F59: 302.04 | G59: 292.07 | H59: 229.18 | I59: 210.31 | J59: 142 | K59: 310.95
A60: Other Liabilities | B60: 47 | C60: 54.44 | D60: 72.24 | E60: 63.15 | F60: 86.1 | G60: 80.17 | H60: 110.96 | I60: 81.16 | J60: 77.87 | K60: 82.71
A61: Total | B61: 461.52 | C61: 491.88 | D61: 509.87 | E61: 570.77 | F61: 666.52 | G61: 725.03 | H61: 761.72 | I61: 801.27 | J61: 848.18 | K61: 1133.6
A62: Net Block | B62: 230.26 | C62: 217.82 | D62: 273.33 | E62: 257.42 | F62: 334.4 | G62: 361.13 | H62: 339.97 | I62: 417.31 | J62: 393.28 | K62: 371.13
A63: Capital Work in Progress | B63: 30.49 | C63: 73.45 | D63: 41.98 | E63: 93.65 | G63: 38.88 | H63: 53.43 | J63: 0.16 | K63: 226.39
A64: Investments | B64: 10.41 | C64: 0.16 | D64: 1.5 | E64: 1.5 | F64: 1.5 | G64: 1.5 | H64: 1.5 | I64: 1.5 | J64: 1.51 | K64: 1.48
A65: Other Assets | B65: 190.36 | C65: 200.45 | D65: 193.06 | E65: 218.2 | F65: 330.62 | G65: 323.52 | H65: 366.82 | I65: 382.46 | J65: 453.23 | K65: 534.6
A66: Total | B66: 461.52 | C66: 491.88 | D66: 509.87 | E66: 570.77 | F66: 666.52 | G66: 725.03 | H66: 761.72 | I66: 801.27 | J66: 848.18 | K66: 1133.6
A67: Receivables | B67: 78.25 | C67: 72.34 | D67: 50.1 | E67: 70.42 | F67: 87.17 | G67: 106.75 | H67: 113.22 | I67: 128.14 | J67: 162.74 | K67: 182.03
A68: Inventory | B68: 72.77 | C68: 85.85 | D68: 89.39 | E68: 117.15 | F68: 155.51 | G68: 137.95 | H68: 173.53 | I68: 148.6 | J68: 182.76 | K68: 183.16
A69: Cash & Bank | B69: 9.24 | C69: 6.16 | D69: 40.99 | E69: 5.64 | F69: 9.35 | G69: 34.38 | H69: 26.63 | I69: 18.68 | J69: 16.79 | K69: 44.21
A70: No. of Equity Shares | B70: 13302792 | C70: 13302792 | D70: 13302792 | E70: 13302792 | F70: 13302792 | G70: 133027920 | H70: 133027920 | I70: 133027920 | J70: 133027920 | K70: 133027920
A71: New Bonus Shares
A72: Face value | B72: 10 | C72: 10 | D72: 10 | E72: 10 | F72: 10 | G72: 2 | H72: 2 | I72: 2 | J72: 2 | K72: 2
A80: CASH FLOW:
A81: Report Date | B81: 2009-03-31 | C81: 2010-03-31 | D81: 2011-03-31 | E81: 2012-03-31 | F81: 2013-03-31 | G81: 2014-03-31 | H81: 2015-03-31 | I81: 2016-03-31 | J81: 2017-03-31 | K81: 2018-03-31
A82: Cash from Operating Activity | B82: 43.21 | C82: 39.69 | D82: 19.63 | E82: 11.29 | F82: 25.1 | G82: 124.79 | H82: 104.71 | I82: 160.98 | J82: 101.78 | K82: 145.15
A83: Cash from Investing Activity | B83: -23.23 | C83: -32.49 | D83: -33.2 | E83: -54.46 | F83: -37.53 | G83: -58.25 | H83: -19.17 | I83: -86.97 | J83: -19.6 | K83: -246.71
A84: Cash from Financing Activity | B84: -19.86 | C84: -10.28 | D84: 51.55 | E84: 7.82 | F84: 16.13 | G84: -41.51 | H84: -93.29 | I84: -81.96 | J84: -84.32 | K84: 128.93
A85: Net Cash Flow | B85: 0.12 | C85: -3.08 | D85: 37.98 | E85: -35.35 | F85: 3.7 | G85: 25.03 | H85: -7.75 | I85: -7.95 | J85: -2.14 | K85: 27.37
A90: PRICE: | B90: 8.307778 | C90: 22.291429 | D90: 24.573158 | E90: 16.736 | F90: 27.359 | G90: 55.221053 | H90: 194.845 | I90: 195.844737 | J90: 344.444737 | K90: 291.442857
A92: DERIVED:
A93: Adjusted Equity Shares in Cr | B93: =IF($B7>0,(B70*B72/$B7)+SUM(C71:$K71),0)/10000000 -> 6.651396 | C93: =IF($B7>0,(C70*C72/$B7)+SUM(D71:$K71),0)/10000000 -> 6.651396 | D93: =IF($B7>0,(D70*D72/$B7)+SUM(E71:$K71),0)/10000000 -> 6.651396 | E93: =IF($B7>0,(E70*E72/$B7)+SUM(F71:$K71),0)/10000000 -> 6.651396 | F93: =IF($B7>0,(F70*F72/$B7)+SUM(G71:$K71),0)/10000000 -> 6.651396 | G93: =IF($B7>0,(G70*G72/$B7)+SUM(H71:$K71),0)/10000000 -> 13.302792 | H93: =IF($B7>0,(H70*H72/$B7)+SUM(I71:$K71),0)/10000000 -> 13.302792 | I93: =IF($B7>0,(I70*I72/$B7)+SUM(J71:$K71),0)/10000000 -> 13.302792 | J93: =IF($B7>0,(J70*J72/$B7)+SUM(K71:$K71),0)/10000000 -> 13.302792 | K93: =IF($B7>0,(K70*K72/$B7),0)/10000000 -> 13.302792

Sheet Shareholding input
B3: http://www.bseindia.com/corporates/Sharehold_Searchnew.aspx?expandable=3 | H3: https://www.bseindia.com/corporates/Insider_Trading_new.aspx?expandable=2
B5: Shareholding Dist. | C5: 2018-09-01 | D5: 2018-03-01 | E5: 2017-03-01 | F5: 2016-03-01 | G5: 2015-03-01 | H5: 2014-03-01
B6: Employee trust & Insurance Co | C6: 0.4517 | D6: 0.4502 | E6: 0.4478 | F6: 0.4473 | G6: 0.4454 | H6: 0.4454
B7: Promoter pledged | C7: 0 | D7: 0 | E7: 0 | F7: 0 | G7: 0 | H7: 0
B8: FII | C8: 0.2693 | D8: 0.2552 | E8: 0.2219 | F8: 0.114 | G8: 0.0764 | H8: 0.0828
B9: Mutual funds | C9: 0.0063 | D9: 0.0154 | E9: 0.0225 | F9: 0.0254 | G9: 0.0986 | H9: 0.0956
B10: Bodies corporate | C10: 0.0169 | D10: 0.0184 | E10: 0.0235 | F10: 0.0297 | G10: 0.0363 | H10: 0.0513
B11: Individuals <= 2 lakh | C11: 0.1014 | D11: 0.1027 | E11: 0.11 | F11: 0.1323 | G11: 0.1348 | H11: 0.1186
B12: Individuals > 2 lakh | C12: 0.0269 | D12: 0.0252 | E12: 0.0348 | F12: 0.054 | G12: 0.0856 | H12: 0.1329
B13: Others | C13: =1-SUM(C6:C12) -> 0.1275 | D13: 0.1329 | E13: 0.1395 | F13: 0.1973 | G13: 0.1229 | H13: 0.0734
B17: Total | C17: =SUM(C6:C16) -> 1 | D17: 1 | E17: 1 | F17: 1 | G17: 1 | H17: 1
B20: Promoters
B26: Rest | C26: =SUM(C6:C7)-SUM(C21:C25) -> 0.4517 | D26: =SUM(D6:D7)-SUM(D21:D25) -> 0.4502 | E26: 0.4478 | F26: 0.4473 | G26: 0.4454 | H26: 0.4454

Sheet Phil Fisher (hidden)
AS3: Red Flags | BB3: RoCE
B4: List of mistakes made in the market made over and over again - | X4: Philip Fisher on What to Buy | AS4: 1. Skewed business performance - Significant change In financial ratios from previous year | BB4: Going to Bed Smarter #4: ROCE, the Secret Winning Edge to any portfolio
AS5: 2.Absence or low implementation of policies | BB5: At Marketsmojo we use the concept of Return on Capital Employed (ROCE) to uncover great companies that can deliver fantastic shareholder returns. In this, the fourth piece in the series of Going to Bed Smarter, I present pieces which let you into the secret of ROCE.
B6: Do not be taken in by the new highs. Once the past peak of the index has been crossed, every new level is a new high & there is nothing extraordinary about it. | X6: 1.Does the company have products or services with sufficient market potential to make possible a sizeable increase in sales for atleast several years | AS6: 3.Unusual related party transactions | BB6: Sanjeev Mohta
B7: These are journeys of an index which will go up as the market prices of stocks go up. They are not urgent reminders that tell you about loss opportunities. | AS7: 4.Too many acquisitions
B8: Do not treat them like immediate calls for actions. Do not check the index everyday, and do not make generalizations based on the index. | X8: 2.Does the management has determination to continue to develop products or processes that will further increase total sales potential when the growth potential of currently attractive product lines have largely been exploited | AS8: 5.Formation of too many subsidiaries | BB8: August 28, 11:54: AM IST
B9: Explanations about why the market is up or down is equally useless. Discount them. How you will do is a function of what you are buying, holding and selling.
B10: Stay focussed on that micro reality, not on the macro nartatives floating around. | X10: 3.How effective are the company's research and development efforts in relation to its size | BB10: Yesterday’s ET story says,“Warren Buffett in Talks for a Slice of Paytm”.
AS11: Outperformers | BB11: Let’s discuss how Warren Buffett finds a great business.
B12: Do not sacrifice quality for anything. The rising tide allows lightweights to also soar. Do not use price as an indicator of how good the stock is. | X12: 4.Does the company have an above average sales organization | AS12: Use of technology and premiumization to improve margins | BB12: His 2007 newsletter reads: “A truly great business must have an enduring ‘moat’ that protects excellent returns on invested capital (ROIC).”
B13: What you see as the rise in the price of the stock in the past is history. What will matter to you is how the stock stock will behave in the future. | AS13: Company is in perpetual challenger mode. Responds swiftly to competition. | BB13: At Marketsmojo we use the concept of Return on Capital Employed (ROCE) to uncover great companies that can deliver fantastic shareholder returns.
B14: While it is not possible to predict the future with any degee of certainity, you need to have an investment thesis or a basic set of reasons why you bought the stock. Write down your reasons. | X14: 5.Does the company have a worthwhile profit margin | AS14: They stay relevant through economic cycles by anticipating and adapting to disruption better. | BB14: In this, the fourth piece in the series of Going to Bed Smarter, I present pieces which let you into the secret of ROCE.
B15: Make sure your holdings are worth your hard earned money. Do not take chances with unknown stocks and overhyped IPO when there are enough of others with well established track record & performance numbers | AS15: Up the ante in customer satisfaction
B16: Your money deserves better | X16: 6.What is the company doing to maintain or improve its profit margin | AS16: There is relentless focus on execution and excellent capital allocation | BB16: The Magic of ROCE
AS17: Ability to convert as opportunities what peers see as risk | BB17: The 2007 letter of Berkshire Hathaway is a classic. If there is only one Berkshire Hathaway letter you want to read, this one is it. In that letter, Warren Buffett narrates the success of See’s Candy.
B18: Do not benchmark your returns with what you may have gained in the short-term by participating in the equity markets. It is a good feeling to see the value of investments go up. | X18: 7.Does the company have outstanding labor and personel relations | AS18: Stable leadership | BB18: “We bought See’s for $25 million when its sales were $30 million and pre-tax earnings were less than $5 million. The capital then required to conduct the business was $8 million (Modest seasonal debt was also needed for a few months each year). Consequently, the company was earning 60% pre-tax on invested capital. Two factors helped to minimize the funds required for operations. First, the product was sold for cash, and that eliminated accounts receivable. Second, the production and distribution cycle was short, which minimized inventories.
B19: A bull market attracts investors as their confidence moves up when what they have invested in begins to do well, or exceed their expectations | AS19: Not venturing in unrelated business or making unrelated acquisitions | BB19: Last year See’s sales were $383 million, and pre-tax profits were $82 million. The capital now required to run the business is $40 million. This means we have had to reinvest only $32 million since 1972 to handle the modest physical growth – and somewhat immodest financial growth – of the business. In the meantime pre-tax earnings have totaled $1.35 billion. All of that, except for the $32 million, has been sent to Berkshire (or, in the early years, to Blue Chip). After paying corporate taxes on the profits, we have used the rest to buy other attractive businesses. Just as Adam and Eve kick-started an activity that led to six billion humans, See’s has given birth to multiple new streams of cash for us. (The biblical command to “be fruitful and multiply” is one we take seriously at Berkshire.)
B20: Investors who see a 10% return as fantastic will begin to believe that a 40% return is to be normally expected. | X20: 8.Does the company have outstanding executive relations | BB20: There aren’t many See’s in Corporate America. Typically, companies that increase their earnings from $5 million to $82 million require, say, $400 million or so of capital investment to finance their growth. That’s because growing businesses have both working capital needs that increase in proportion to sales growth and significant requirements for fixed asset investments.
B21: Do not be taken in by recent experiences of appreciation in the value of your investments. Learn to see these as the buffer for the inevitable correction that will come in the future. | BB21: A company that needs large increases in capital to engender its growth may well prove to be a satisfactory investment. There is, to follow through on our example, nothing shabby about earning $82 million pre-tax on $400 million of net tangible assets. But that equation for the owner is vastly different from the See’s situation.It’s far better to have an ever-increasing stream of earnings with virtually no major capital requirements. Ask Microsoft or Google.”
B22: It does not matter when that would happen, not is it necessary to predict the next fall. Returns will eventually average out overtime and these abnormal gains will bufer you again. | X22: 9.Does the company have depth to its management
BB23: ROCE = EBIT/Capital Employed
B24: Do not quit in great haste. The desire to be right about timing the market is very high with investors. Coming off from a flat into a boom creates anxities. | X24: 10.How good are the company's cost analysis and accounting controls | BB24: How do we calculated ROCE? Well, there are a few variants. But the easiest one is shown in this paper by Mirae Asset Management. Marketsmojo uses the same method.
B25: Stories about how someone did not make all the money because of not getting out at the right time remain in memory. | BB25: EBIT is easy to calculate, but what about the Capital Employed? The paper says: “Capital Employed is the capital investment necessary for a business to function. It is commonly represented as total assets less current liabilities (or Fixed Assets plus Working Capital).”
B26: Tentativeness about how far the markets will run up will increase as naysayers point to the end of the bull market with every rise. | X26: 11.Are there other aspects of the business, somewhat peculiar to the industry involved, which will give the investor important clues as to how outstanding the company maybe in relation to its competitors | BB26: ROCE is a far more useful measure compared to Return on Equity (ROE) as: “ ROCE is especially useful when comparing the performance of companies in capital-intensive sectors such as utilities and telecoms. This is because unlike return on equity (ROE), which only analyzes profitability related to a company’s equity, ROCE considers debt and other liabilities as well. This provides a better indication of financial performance for companies with significant debt.”
B27: Remember that a bull market is not defined by its highs, but by its lows. No one knows how far your stock will run and you may regret quitting too soon. | BB27: It follows from the equation that in order to generate high ROCE, a company must either have very high profit margins or need low levels of Capital Employed or a combination of the two.
B28: Allow your gains to run. What you have to be hawk-eyed is the loss. | X28: 12.Does the company have a short-range or a long-range outlook in regard to its profits | BB28: We have had many such companies in India as well. Many consumer related business enjoy high ROCE due to their Asset Light nature. Hindustan Unilever with ROCE at close to 800%, Nestle at 400%, Page Industries at 84% are great examples.
B30: Do not hesitate to throw out the bad apples. There is no way you will get each one of the stock picks right - even if you did the best research and analysis. | X30: 13.In the foreseeable future will the growth of the company require sufficient equity financing so that the large number of shares then outstanding will largely cancel the existing share holder's benefit from this anticipated growth | BB30: High ROCE Means High Valuation
B31: There are too many unknowns and a stock you picked might end up doing worse that you expected. Your portfolio will do well if you focus on selling off what is losing money for you, rather than selling what is making money. | BB31: In 1997, when running research for HSBC, I had written a piece on the importance of ROCE. I had found that, everything else remaining the same, high ROCE companies enjoy far higher valuation that companies with low ROCE. At least for the companies where market believes that the high ROCE is sustainable.
B32: Do not hope to recover your loss from the stock you wrongly picked. You can make it in a another stock.By letting your losses to persist, you are allowing your capital to bleed. | X32: 14.Does the management talk freely to investors about its affairs when things are going well but calm up when trouble and disappointments happen | BB32: A 2011 report, “Impact of ROCE on valuation”, by PWC concluded: “Companies that deliver better Return on Capital Employed (ROCE) experience higher valuation”
B33: If you are unable to see at a loss and move on, you may still not be ready for equity investing.If you do not cut your loss, your profits may get wiped off. | BB33: The relationship remains the same today. Is it any wonder why Hindustan Unilever, Nestle or Page Industries enjoy such high valuations?
X34: 15. Dies the company has management of unquestionable integrity | BB34: At Marketsmojo, the five-year average ROCE is one of the most important metric used in our Quality Parameter.
B35: Do not indulge in day trading if you not mastered the art of managing your capital. Trading is very different from investing & calls for a different set of skills.
B36: Riding the momentum in a stock and booking some quick gains can make you mistakenly believe that it is all easy. Its just that you got lukcy in a gamble ans you may not be able to replicate your gains. | BB36: An interesting example: The Abrasives Industry
B37: Traders are tested when the bets move against them and a good one will bow out and take the loss on the chin. The amateur will hold the position & wish for the markets to oblige & get caught up in steep loss. | BB37: Let us look at the Abrasives Industry (which was picked randomly) which has a fairly uniform product, the relationship between the five-year average ROCE and Price/Book Value is fairly consistent with the findings above.
B38: Trading is about moving the capital quickly across positions, evaluating them as you go along. If you merely buy & sell without that agility it is your broker who will make the money, not you. | BB38: Next time you look at a stock, don’t forget to look at its long term ROCE – it’ll give you an insight about the inherent strength of the company’s business, and its ability to squeeze value from every rupee of capital. That will not only determine its valuation but also the price performance.
B40: Particpate in the market with the power of information and preparedness. There are sensible approaches for discerning investor to participate in the value that businesses create
B43: When your stock falls, ask yourself. Is it critical to its survival or is it just a temporary patch? If it is temporary, your stock will most likely pass through the tough phase. As you go about investing, always keep in mind, every good stock will have bad days.
B47: Good investing means being prepared for an environment different than what we thought and keeping Plan B ready. Predit less and plan more.
B48: Accept that market and returns have cycles. What goes up will go down.
B50: Invest in companies with share of mind among consumers. These companies have pricing power and a unique moat. The consumers keep coming back to these products
B51: A vast majority of customers will have something positive about the company
B53: The art of valuation
B54: 1.Analysts need to be careful of and fix their own internal flaws, keeping emotions in check. Steering clear of the overconfidence mind trap, the heuristics mind trap, confirmation bias, and the like would keep you in good stead. “Make sure we know there’s always a different view on a particular stock,” Valentine states
B58: 2.It is essential to get a grasp on expectations and concerns of market participants and where those fit into the larger market outlook.
B61: 3.Don’t change price target unless there is ample reason, whether a revised forecast, a revised multiple, or a new valuation method. Another critical point: If you’re going to change your price target, don’t do it incrementally.
B65: 4.Which factors are going to move my stocks and where can I get unique insights on these factors?
B69: The art of building portfolio
B70: Across all sizes (large, mid and small)
B71: Aggregation of risk in portfolio from a SINGLE EVENT
B72: Maximum exposure 10%. Nothing goes above 15%
B73: #stocks 15-20
B74: Emerging moat business 2-3% weight
B77: Behavior Science
B78: I know it all - You should be realistic about your abilities than carry any misguided conviction that anything you will touch will turn in gold.
B79: The tendency to accumulate a particular type of investment is the outcome of such a bias.
B80: Don't be carried away thinking the outcome is a result of your ability & skill
B82: Mental maths - Risk & returns are two sides of the coin. Don't be misguided by seeing only one side of the coin.
B84: Why did I do that? Do not get carried away with your prediction having come true, even when you have not gained from the decision.
B85: Instead of regretting your decision, treat it as a lesson for the future.
B86: If you are unsure of your action, postpone taking a decision.
B87: Betting on a sector that is out of favor because you feel its cheap is a avoidable mistake
B89: Instant gratification - Learn to defer decisions that involve spending.Never rush or make hasty decisions with money.
B91: Make the right moves - Keep yourself up-to-date in your profession to ensure your job is not in the line of fire.
B92: Do not borrow when you have money sitting in an instrument that earns lesser
B93: As much as possible, borrow to acquire assets that appreciate in value.
B95: You cant do it all - Do not live with the belief that you can do everything on your own.
